Cogmind - Beta 10.1 @@@ ROGUE MODE // 2020.10.01 @ 18:59:48 Player: Alexbot Result: Fortifying 0b10! Performance ------------- Evolutions (9) 4500 Regions Visited (36) 7200 Robots Destroyed (294) 1470 Value Destroyed (18737) 18737 Prototype IDs (128) 2560 Alien Tech Used (9) 1800 Bonus (18344) 18344 TOTAL SCORE: 54611 Bonus ------- High Alert Combat Kills 926 Follower Combat Kills 1495 Network Hubs Disabled 400 Aligned with FarCom 300 Met Data Miner 300 Met Zhirov 300 MAIN.C Attacked Warlord 500 Warlord Defense Kill 300 Built Enhanced Grunts 300 Met R17 at Cetus 500 Met R17 at Research 2000 Met Sigix 2000 Met MAIN.C 5000 Destroyed MAIN.C Shell 5000 Win 3000 Friendly Fire -3977 Cogmind --------- Core Integrity 814/1600 Matter 423/425 Energy 588/1130 System Corruption 5% Temperature Cool (0) Movement Flying (17) Location By MAIN.C's Side Parts ------- > --- POWER (1) -------- Mini Fusion Reactor > --- PROPULSION (2) --- Experimental Q-thruster Experimental Q-thruster > --- UTILITY (20) ----- Improved Fusion Compressor 2N-1CE's Frost Array Lightpack 2.0 Experimental Energy Well Inertial Stasis Machine Dimensional Manipulator Dimensional Manipulator Experimental Targeting Computer Experimental Targeting Computer Experimental Core Analyzer Precision Energy Filter Advanced Particle Accelerator Quantum Capacitor Advanced Reaction Control System Experimental Phase Shifter Experimental Propulsion Shielding Experimental Utility Shielding AEGIS Remote Shield > --- WEAPON (3) ------- Improved Potential Cannon Plasma Lance > --- INVENTORY (28) --- Enhanced Armored Heavy Treads Experimental Energy Well (400) Experimental Energy Well (1000) Experimental Weapon Cycler Femtoactuators Advanced Force Booster Experimental Weapon Shielding Experimental Weapon Shielding SHELL Armor Experimental Focal Shield Beam Splitter EM Dispersion Field Experimental Force Field Chronowheel Integrity Redistributor Null Cannon Core Cannon Mini Smartbomb Launcher Sigix Terminator Plasma Lance Plasma Lance Peak State ------------ > --- POWER ------------ Mini Fusion Reactor > --- PROPULSION ------- Experimental Q-thruster Experimental Q-thruster > --- UTILITY ---------- Improved Fusion Compressor 2N-1CE's Frost Array Large Storage Unit Lightpack 2.0 Experimental Energy Well Inertial Stasis Machine Dimensional Manipulator Dimensional Manipulator Experimental Signal Interpreter Experimental Targeting Computer Experimental Targeting Computer Experimental Armor Integrity Analyzer Precision Energy Filter Experimental Weapon Cycler Advanced Force Booster Advanced Reaction Control System Experimental Propulsion Shielding Experimental Utility Shielding AEGIS Remote Shield > --- WEAPON ----------- Core Cannon Plasma Lance > --- INVENTORY -------- Enhanced Armored Heavy Treads Experimental Energy Well Experimental Energy Well Experimental Matter Compressor Experimental Sensor Array Advanced Particle Accelerator Quantum Capacitor Femtoactuators Experimental Phase Shifter Experimental Weapon Shielding Experimental Weapon Shielding SHELL Armor Experimental Focal Shield Beam Splitter EM Dispersion Field Experimental Force Field Chronowheel Integrity Redistributor Integrity Redistributor Integrity Redistributor Null Cannon Improved Potential Cannon Mini Smartbomb Launcher Sigix Terminator Plasma Lance Plasma Lance [Rating: 257] Favorites ----------- Power Mini Fusion Reactor Engine Light Ion Engine Power Core Micro Fission Core Reactor Mini Fusion Reactor Propulsion Experimental Q-thruster Treads Armored Treads Leg Aluminum Leg Flight Unit Experimental Q-thruster Utility Large Storage Unit Device Advanced Weight Redist. System Storage Large Storage Unit Processor Experimental Signal Interpreter Hackware Makeshift Hacking Suite Protection Experimental Utility Shielding Weapon Plasma Lance Energy Gun Tesla Rifle Energy Cannon Heavy Ion Cannon Ballistic Gun Improved KE Penetrator Ballistic Cannon Antimatter Cannon Launcher Rocket Launcher Special Weapon Mining Laser Slashing Weapon Scythe Piercing Weapon Plasma Lance Build | -11 -10 -10 -10 -9 -8 -7 -7 -7 -7 -6 -6 -6 -6 -6 -6 -6 -6 -5 -5 -5 -5 -5 -5 -4 -4 -4 -4 -4 -3 -3 -3 -2 -2 -2 -1 -1 ------- Run | Scr Mat Min Exi Min Mat Fac Low Low Dat Pro Fac Was Fac Ext Cet Arc Hub Fac Was Fac Upp Upp War Pro Fac Upp Upp Zhi Pro Res Tes Res Qua Sec Acc Com Slots Evolved 18 | . . . . . 4 2 . . . . 2 . . . . . . 2 . . . . . . 2 . . . . 2 . 2 . . 2 . Power . | . . . . . . . . . . . . . . . . . . . . . . . . . . . . . . . . . . . . . Propulsion . | . . . . . . . . . . . . . . . . . . . . . . . . . . . . . . . . . . . . . Utility 18 | . . . . . 4 2 . . . . 2 . . . . . . 2 . . . . . . 2 . . . . 2 . 2 . . 2 . Weapon . | . . . . . . . . . . . . . . . . . . . . . . . . . . . . . . . . . . . . . Parts Attached 545 | . 1 8 2 . 12 12 10 8 5 6 12 . 14 14 11 5 7 75 2 64 6 1 16 3 42 1 3 4 3 10 20 14 24 55 26 49 Power 19 | . . 1 . . 1 . 1 . . 1 2 . . 2 2 . . 3 . 1 1 . . . 1 . . . . 1 . . 1 1 . . Engine 4 | . . 1 . . . . . . . 1 . . . 2 . . . . . . . . . . . . . . . . . . . . . . Core 9 | . . . . . 1 . 1 . . . 2 . . . . . . 3 . 1 1 . . . . . . . . . . . . . . . Reactor 6 | . . . . . . . . . . . . . . . 2 . . . . . . . . . 1 . . . . 1 . . 1 1 . . Propulsion 40 | . . 2 . . 2 1 1 1 2 1 2 . 1 6 2 . . 5 1 8 . . 2 . 1 . . . . . 1 . . 1 . . Treads 14 | . . 2 . . 2 1 1 1 . . . . . 1 2 . . 2 . 2 . . . . . . . . . . . . . . . . Leg 5 | . . . . . . . . . . . . . . 5 . . . . . . . . . . . . . . . . . . . . . . Wheel . | . . . . . . . . . . . . . . . . . . . . . . . . . . . . . . . . . . . . . Hover . | . . . . . . . . . . . . . . . . . . . . . . . . . . . . . . . . . . . . . Flight 21 | . . . . . . . . . 2 1 2 . 1 . . . . 3 1 6 . . 2 . 1 . . . . . 1 . . 1 . . Utility 338 | . 1 . 2 . 6 6 2 3 2 1 3 . 5 3 2 4 7 53 1 42 5 . 8 2 27 1 2 3 . 6 12 9 19 45 22 34 Device 242 | . 1 . . . 3 1 2 1 1 1 . . 3 3 . 1 4 35 . 32 3 . 5 2 15 1 2 2 . 1 8 7 15 43 21 29 Storage 15 | . . . 2 . 1 1 . . 1 . . . 1 . . 1 . 1 1 1 . . 1 . . . . . . 1 1 . 1 1 . . Processor 13 | . . . . . 1 1 . 2 . . . . . . . . 1 1 . 1 . . . . 1 . . . . . 1 . 1 . . 3 Hackware 12 | . . . . . . 1 . . . . 3 . . . . . . 2 . . . . . . 2 . . . . 2 . 2 . . . . Protection 56 | . . . . . 1 2 . . . . . . 1 . 2 2 2 14 . 8 2 . 2 . 9 . . 1 . 2 2 . 2 1 1 2 Artifact . | . . . . . . . . . . . . . . . . . . . . . . . . . . . . . . . . . . . . . Weapon 148 | . . 5 . . 3 5 6 4 1 3 5 . 8 3 5 1 . 14 . 13 . 1 6 1 13 . 1 1 3 3 7 5 4 8 4 15 Energy Gun 7 | . . . . . . . . . . . . . . . . . . 1 . 1 . . 4 . . . . . . . 1 . . . . . Energy Cannon 58 | . . . . . 1 3 1 1 . 1 2 . 5 1 2 . . 4 . 1 . . . . 11 . . 1 2 2 4 1 . 4 1 10 Ballistic Gun 19 | . . 2 . . 1 . 1 . . . . . . 1 1 1 . 6 . 5 . . . . . . . . . . . 1 . . . . Ballistic Cannon 18 | . . 1 . . . . 2 . . . . . . . 2 . . 2 . 5 . 1 1 1 2 . . . . . . . . . . 1 Launcher 16 | . . . . . 1 1 2 1 . . 1 . 1 . . . . 1 . 1 . . 1 . . . 1 . 1 . . 1 2 . 1 . Special Weapon 3 | . . 2 . . . . . . . . 1 . . . . . . . . . . . . . . . . . . . . . . . . . Impact Weapon . | . . . . . . . . . . . . . . . . . . . . . . . . . . . . . . . . . . . . . Slashing Weapon 1 | . . . . . . . . . . . . . . 1 . . . . . . . . . . . . . . . . . . . . . . Piercing Weapon 26 | . . . . . . 1 . 2 1 2 1 . 2 . . . . . . . . . . . . . . . . 1 2 2 2 4 2 4 Special Melee Weapon . | . . . . . . . . . . . . . . . . . . . . . . . . . . . . . . . . . . . . . Unidentified Prototypes 34 | . . . . . . . . . . 1 1 . 1 . 4 1 . 3 1 1 . . 5 . . . . 3 . . 5 . 1 2 . 5 Parts Lost 33 | . . 6 . . . 1 6 . 2 . . . 7 . . . . 6 . 2 . . 1 . . . . . . . . 1 . . . 1 Power 5 | . . 1 . . . . 1 . 1 . . . 1 . . . . 1 . . . . . . . . . . . . . . . . . . Propulsion 7 | . . 1 . . . . 1 . 1 . . . 2 . . . . . . 2 . . . . . . . . . . . . . . . . Utility 9 | . . 1 . . . 1 3 . . . . . 1 . . . . 1 . . . . . . . . . . . . . 1 . . . 1 Weapon 12 | . . 3 . . . . 1 . . . . . 3 . . . . 4 . . . . 1 . . . . . . . . . . . . . Highest Loss Streak 6 | . . 6 . . . 1 5 . 2 . . . 3 . . . . 2 . 2 . . 1 . . . . . . . . 1 . . . 1 Average Slot Usage (%) 86 | . 91 87 91 100 96 95 76 91 83 65 73 81 75 80 85 86 87 85 82 80 83 83 77 77 79 80 80 80 80 81 89 89 94 94 95 87 Engine 1 | . 14 14 14 14 4 . . . . 2 . . . 4 . . . . . . . . . . . . . . . . . . . . . . Core 2 | . . . . . 4 7 6 7 6 . 4 6 5 . . . . 3 5 4 5 5 5 5 2 . . . . . . . . . . . Reactor 2 | . . . . . . . . . . . . . . . 5 6 6 1 . . . . . . 2 5 5 5 5 3 4 4 3 3 3 3 Treads 5 | . . 12 28 28 18 15 8 6 4 . . . . . 5 6 6 4 . . . . . . . . . . . . . . . . . . Flight 4 | . . . . . . . . . 4 14 12 12 11 . . . . . 8 8 11 11 11 11 9 10 10 10 10 9 9 8 8 8 7 7 Device 11 | . 5 7 . . 23 3 1 7 5 7 6 6 3 6 3 5 4 7 16 15 18 22 21 22 18 19 20 16 20 15 13 16 20 19 23 36 Storage 12 | . 14 14 20 28 18 24 23 23 18 7 6 6 6 6 6 6 12 10 7 11 11 11 11 11 10 10 10 10 10 9 9 8 10 12 15 10 Processor 12 | . . . . . 8 12 15 29 30 28 25 25 21 18 18 17 12 11 11 11 11 11 11 11 10 10 10 10 10 9 9 8 11 12 11 11 Hackware 13 | . . . . . . 2 1 . . . 12 18 18 18 18 18 18 21 22 19 16 16 16 16 18 20 20 20 20 24 27 26 17 16 15 1 Protection 5 | . . . . . . 12 3 . . . . . 3 6 8 6 7 8 . 1 2 . . . 7 6 5 5 5 8 8 8 6 7 6 8 Energy Cannon 1 | . . . . . 3 6 6 5 . 1 . . . 3 4 . . 1 5 2 . . . . . . . 3 . . . . . . . 2 Ballistic Gun 3 | . 28 17 14 14 4 . . . . . . . . 2 1 5 6 7 5 3 5 5 . . . . . . . . . 2 . . . . Ballistic Cannon 2 | . . 3 14 14 9 6 3 . . . . . . . 4 6 6 2 . 1 . . . . . . . . . . . . . . . . Slashing Weapon 1 | . . . . . . . . . . . . . . 2 6 6 6 1 . . . . . . . . . . . . . . . . . . Piercing Weapon 2 | . . . . . . . . 4 6 4 4 6 2 . . . . . . . . . . . . . . . . 1 6 6 11 11 10 3 Naked Turns . | . . . . . . . . . . . . . . . . . . . . . . . . . . . . . . . . . . . . . Heaviest Build 86 | 12 14 16 44 44 76 86 80 66 62 30 21 15 17 37 54 61 61 69 42 48 32 32 37 28 43 31 33 40 31 34 41 43 64 64 64 81 Greatest Support 82 | 20 20 20 40 40 40 40 40 20 20 12 16 16 16 40 80 80 80 80 28 33 37 37 36 36 36 36 36 36 36 36 52 42 67 67 66 82 Greatest Overweight (x) 9 | . . . 1 1 1 2 3 3 3 9 1 . 1 6 . . . . 1 5 1 . 1 . 1 . . 1 . . . 1 1 . . 1 Average Overweight (x) . | . . . . 1 1 1 2 3 1 . . . . . . . . . . . . . . . . . . . . . . . . . . . Largest Inventory Capacity 40 | . 6 6 16 16 22 22 22 22 36 24 24 24 24 24 24 30 30 30 30 30 30 30 30 30 30 30 30 30 30 30 30 30 36 40 40 40 Average Capacity 26 | . 6 6 10 16 16 22 22 22 22 24 24 24 24 24 24 24 30 29 26 30 30 30 30 30 30 30 30 30 30 30 30 30 34 36 40 32 Most Carried 39 | . 6 6 13 13 18 22 22 22 24 22 24 24 24 24 24 30 30 30 28 30 30 29 30 30 30 30 30 30 30 30 30 30 36 39 39 39 Average Carried 25 | . 5 4 7 13 15 21 21 20 19 20 23 23 23 23 23 24 29 28 25 27 29 28 28 29 29 30 29 29 29 28 29 29 33 35 37 30 Final Capacity 40 | 6 6 6 16 16 22 22 22 22 24 24 24 24 24 24 24 30 30 24 30 30 30 30 30 30 30 30 30 30 30 30 30 30 36 40 40 28 Final Carried 39 | 6 6 5 13 13 17 22 22 19 23 22 24 24 24 24 24 30 29 24 28 30 29 29 29 30 30 30 30 30 30 30 30 30 36 39 38 26 Class Distribution -------------------- 33% | Hacker-Mutant 12% | Hauler-Mutant 9% | Mutant 8% | Hacker-Sprinter 7% | Machinist-Sprinter 5% | Hacker-Scout 3% | Machinist-Scout 3% | Wizard-Sprinter Dominant Class ---------------- Mutant | -10/Materials Mutant | -10/Mines Mutant | -10/Exiles Mutant | -9/Mines Mutant | -8/Materials Hauler-Mutant | -7/Factory Hauler-Mutant | -7/Lower Caves Hauler-Assassin | -7/Lower Caves Hauler-Mutant | -7/Data Miner Hauler-Assassin | -6/Proximity Caves Hacker-Scout | -6/Factory Hacker-Scout | -6/Waste Hacker-Scout | -6/Factory Hacker-Mutant | -6/Extension Commander-Mutant | -6/Cetus Hacker-Mutant | -6/Archives Hacker-Mutant | -6/Hub_04(d) Hacker-Mutant | -5/Factory Hacker-Mutant | -5/Waste Hacker-Mutant | -5/Factory Hacker-Scout | -5/Upper Caves Hacker-Scout | -5/Upper Caves Hacker-Sprinter | -5/Warlord Hacker-Sprinter | -4/Proximity Caves Hacker-Sprinter | -4/Factory Hacker-Scout | -4/Upper Caves Hacker-Scout | -4/Upper Caves Hacker-Mutant | -4/Zhirov Hacker-Scout | -3/Proximity Caves Wizard-Sprinter | -3/Research Wizard-Scout | -3/Testing Wizard-Scout | -2/Research Machinist-Sprinter | -2/Quarantine Machinist-Sprinter | -2/Section 7 Machinist-Scout | -1/Access Machinist-Mutant | -1/Command Resources | -11 -10 -10 -10 -9 -8 -7 -7 -7 -7 -6 -6 -6 -6 -6 -6 -6 -6 -5 -5 -5 -5 -5 -5 -4 -4 -4 -4 -4 -3 -3 -3 -2 -2 -2 -1 -1 ----------- Run | Scr Mat Min Exi Min Mat Fac Low Low Dat Pro Fac Was Fac Ext Cet Arc Hub Fac Was Fac Upp Upp War Pro Fac Upp Upp Zhi Pro Res Tes Res Qua Sec Acc Com Matter Collected 14376 | 200 . 65 59 . 177 401 301 144 . 35 402 . 16 765 150 327 120 2004 326 860 162 . 911 20 966 44 47 130 164 111 101 491 1802 1120 915 1040 Remotely . | . . . . . . . . . . . . . . . . . . . . . . . . . . . . . . . . . . . . . Salvage Created 13330 | . . 45 . . 282 840 454 306 21 . 372 . 50 430 340 200 392 2542 . 577 124 . 86 . 231 . 33 130 94 111 149 603 1031 940 1060 1887 Parts 643 | . . 3 . . 18 57 19 8 2 . 24 . 6 20 13 16 28 121 . 28 1 . 1 . 8 . 1 . 13 3 16 48 62 38 51 38 Haulers Intercepted 11 | . . . . . 1 1 . . . . . . . . . . . 6 . . . . . . . . . . . 1 . . 1 1 . . Recyclers Shooed 6 | . . . . . . 1 . . . . . . . . . . . 2 . 2 . . . . 1 . . . . . . . . . . . Parts Field Recycled . | . . . . . . . . . . . . . . . . . . . . . . . . . . . . . . . . . . . . . Retrieved Matter . | . . . . . . . . . . . . . . . . . . . . . . . . . . . . . . . . . . . . . Parts Self-Destructed 71 | . . . . . . . 14 16 . . . . . . . . . . . . 1 . 21 . . 7 1 . 11 . . . . . . . Prevented 26 | . . . . . . . . . . . . . . . . . . . . . . . 26 . . . . . . . . . . . . . Kills | -11 -10 -10 -10 -9 -8 -7 -7 -7 -7 -6 -6 -6 -6 -6 -6 -6 -6 -5 -5 -5 -5 -5 -5 -4 -4 -4 -4 -4 -3 -3 -3 -2 -2 -2 -1 -1 ------- Run | Scr Mat Min Exi Min Mat Fac Low Low Dat Pro Fac Was Fac Ext Cet Arc Hub Fac Was Fac Upp Upp War Pro Fac Upp Upp Zhi Pro Res Tes Res Qua Sec Acc Com Combat Hostiles Destroyed 209 | . . 3 . . 8 23 15 7 . . 3 . 5 5 4 1 3 37 . 15 . . 3 . . . 4 . 4 . . 9 11 8 11 30 Melee 41 | . . . . . . . . . . . 1 . . 1 . . . . . . . . . . . . . . . . . 4 8 8 10 9 Guns 46 | . . 3 . . . . 1 . . . . . . 4 2 . 2 27 . 4 . . . . . . . . . . . 3 . . . . Cannons 49 | . . . . . 4 11 5 1 . . . . . . . 1 1 8 . 2 . . . . . . . . . . . . . . . 16 AOE 67 | . . . . . 4 12 9 6 . . 2 . 5 . . . . 2 . 8 . . 3 . . . 4 . 4 . . 2 3 . . 3 Classes Destroyed 19 | . . 2 . . 4 5 3 1 . . . . . . . . . 1 . . . . . . . . . . . . . . 2 . . 1 Worker 18 | . . . . . 1 1 . . . . 4 . . . . . 4 3 . 1 . . . . . . . . . . . 3 . . . 1 Builder 12 | . . . . . . 1 . . . . . . . . . . 3 5 . . . . . . . . . . . . 3 . . . . . Tunneler 1 | . . . . . . . . . . . . . . . . . . 1 . . . . . . . . . . . . . . . . . . Hauler 11 | . . . . . 1 1 . . . . . . . . . . . 6 . . . . . . . . . . . 1 . . 1 1 . . Recycler 8 | . . . . . . 2 . . . . 1 . . 1 . . . . . 1 . . . . 1 . . . . . . . 1 . 1 . Operator 7 | . . . . . . 1 . . . . . . . . . 4 . 1 . . . . . . . . . . . . . . . 1 . . Watcher 24 | . . . . . 1 . . . . . . . . . . . 4 5 . 1 . . . . 2 . . . . . 2 3 2 2 1 1 Swarmer 54 | . . 2 . . 4 7 8 . . . . . 5 . . . . 7 . 5 . . . . . . 4 . 4 . . 4 . . . 4 Grunt 47 | . . . . . . 13 2 5 . . . . . 2 1 . . 14 . 3 . . 2 . . . . . . . . . . 1 4 . Brawler 3 | . . . . . . . . 1 . . . . . . . . . 1 . 1 . . . . . . . . . . . . . . . . Duelist 6 | . . . . . . . 1 1 . . . . . . . . . 1 . . . . 1 . . . . . . . . . . . 1 1 Protector 1 | . . . . . . . . . . . . . . . . . . . . . . . . . . . . . . . . . 1 . . . Sentry 26 | . . . . . 4 . 1 . . . . . . 2 . 1 2 3 . 1 . . . . . . . . . . . 3 . 6 3 . Demolisher 1 | . . 1 . . . . . . . . . . . . . . . . . . . . . . . . . . . . . . . . . . Hunter 13 | . . . . . . . 2 . . . 3 . . . . . . 2 . . . . . . . . . . . . . . 3 . . 3 Programmer 30 | . . . . . . 3 . . . . . . . 1 1 . 1 9 . 5 . . . . . . . . . . . 2 3 1 3 1 Behemoth 1 | . . . . . . . 1 . . . . . . . . . . . . . . . . . . . . . . . . . . . . . Cetus Guard 2 | . . . . . . . . . . . . . . . 2 . . . . . . . . . . . . . . . . . . . . . Enhanced Q-Series 22 | . . . . . . . . . . . . . . . . . . . . . . . . . . . . . . . . . . . . 22 Lightning 3 | . . . . . . . . . . . . . . . . . . . . . . . . . . . . . . . . . 3 . . . Alpha 7 1 | . . . . . . . . . . . . . . . . . . . . . . . . . . . . . . . . . 1 . . . Best Kill Streak 11 | . . 2 . . 7 8 5 4 1 . 3 . 5 2 2 3 6 11 . 10 . . 3 . 3 . 4 . 4 1 3 9 5 3 4 8 Combat Bots Only 10 | . . 2 . . 6 5 5 4 . . 3 . 5 2 2 1 1 9 . 10 . . 3 . . . 4 . 4 . . 6 4 3 4 7 Max Kills in Single Turn 6 | . . 1 . . 2 4 3 2 1 . 1 . 3 1 1 1 6 3 . 3 . . 1 . 1 . 3 . 4 1 1 4 3 1 2 2 Gunslinging 1 | . . . . . . . . . . . . . . . . . . 1 . . . . . . . . . . . . . . . . . . Exploded 4 | . . . . . 2 3 3 2 . . 1 . 3 . . . . 2 . 3 . . 1 . . . 3 . 4 . . 2 3 . . 1 Melee 2 | . . . . . . . . . . . 1 . . 1 . . . . . . . . . . . . . . . . . 1 1 1 2 2 Uniques/NPCs Destroyed 3 | . . . . . . . . . 1 . . . . . 1 . . . . . . . . . . . . . . . . . . . . 1 Data Miner (-7/Data Miner) A7 (-6/Cetus) MAIN.C Shell (-1/Command) Combat | -11 -10 -10 -10 -9 -8 -7 -7 -7 -7 -6 -6 -6 -6 -6 -6 -6 -6 -5 -5 -5 -5 -5 -5 -4 -4 -4 -4 -4 -3 -3 -3 -2 -2 -2 -1 -1 -------- Run | Scr Mat Min Exi Min Mat Fac Low Low Dat Pro Fac Was Fac Ext Cet Arc Hub Fac Was Fac Upp Upp War Pro Fac Upp Upp Zhi Pro Res Tes Res Qua Sec Acc Com Damage Taken 13426 | . . 664 . . 361 1127 1203 108 183 . 85 . 471 215 285 95 404 4514 . 604 92 . 190 . 284 . 200 . . . . 82 455 155 303 1346 Core 1728 | . . 146 . . 7 93 180 33 45 . 23 . 193 14 . . 53 385 . 16 20 . . . 54 . 37 . . . . 6 127 29 74 193 Absorbed by Shields 737 | . . . . . 12 36 . . . . . . . . 108 . . . . 53 . . . . . . . . . . . . . . . 528 Reduced by Siege Mode 308 | . . . . . . . . . . . . . . . . . 10 298 . . . . . . . . . . . . . . . . . . Core Remaining (%) 74 | 100 . . . 41 98 . . . . 49 . . . . . . 66 . . . . . . 57 . . . . 92 . 100 . . 88 . 50 Volleys Fired 787 | . 1 15 . . 14 100 32 37 . 27 7 . 10 14 10 41 13 178 . 80 6 2 8 1 27 . 3 10 7 3 5 29 3 9 9 86 Largest 3 | . 2 2 . . 2 2 2 2 . 1 1 . 1 1 1 1 2 3 . 2 1 1 1 1 1 . 1 1 1 1 1 1 1 1 1 1 Hottest 300 | . 40 100 . . 69 109 118 98 . 65 90 . 90 90 69 69 75 155 . 280 28 40 240 40 110 . 80 81 110 110 130 130 80 130 130 300 Shots Fired 1082 | . 2 24 . . 21 119 82 39 . 27 7 . 10 30 19 45 25 336 . 89 6 2 8 1 27 . 3 10 7 3 5 29 3 9 9 85 Gun 464 | . 2 22 . . 7 . 43 . . . . . . 15 9 32 13 239 . 48 6 . 3 . . . . . . . . 25 . . . . Cannon 540 | . . . . . 10 108 29 26 . 27 2 . 6 15 10 13 12 97 . 32 . 2 1 1 27 . . 10 6 3 5 2 . 9 2 85 Launcher 75 | . . . . . 4 11 10 13 . . 4 . 4 . . . . . . 9 . . 4 . . . 3 . 1 . . 2 3 . 7 . Special 3 | . . 2 . . . . . . . . 1 . . . . . . . . . . . . . . . . . . . . . . . . . Kinetic 583 | . 2 22 . . 14 34 48 . . . . . . 15 9 35 25 283 . 55 6 2 1 1 6 . . . . . . 25 . . . . Thermal 346 | . . 2 . . 3 74 24 26 . 27 2 . 6 15 . . . 31 . 14 . . 1 . 9 . . . 6 3 5 2 . 9 2 85 Explosive 68 | . . . . . 4 11 10 13 . . 4 . 4 . . . . . . 9 . . 4 . . . 3 . 1 . . 2 3 . . . Electromagnetic 82 | . . . . . . . . . . . . . . . 10 10 . 22 . 11 . . . . 12 . . 10 . . . . . . 7 . Entropic 2 | . . . . . . . . . . . . . . . . . . . . . . . 2 . . . . . . . . . . . . . Robot Hit Streak 32 | . . 3 . . 8 9 17 8 . . 3 . 2 11 19 21 6 32 . 12 6 . . . 7 . . 10 . . . 13 . . 2 12 Robot Miss Streak 9 | . 2 4 . . 3 9 4 2 . . 1 . 1 2 . 3 2 6 . 2 . . . . 2 . . . . . . 2 . . 3 1 Penetration Max 3 | . . . . . . . . . . . . . . . . 1 1 1 . . . . . . . . . . . . . 3 . . . 3 Secondary Targets 8 | . . 1 . . . . . . . . . . . . . . . 7 . . . . . . . . . . . . . . . . . . Max Gunslinging Chain 2 | . . 1 . . . . . . . . . . . . . . . 2 . . . . . . . . . . . . . . . . . . Capacitor 72 | . . . . . . . . . . . . . . . . . . . . . . . . . . . . . . . . . . . . 72 Autonomous 85 | . . . . . . . 43 . . . . . . 15 9 . . 18 . . . . . . . . . . . . . . . . . . Shots Hit Robots 837 | . . 8 . . 14 63 64 11 1 . 12 . 2 17 31 29 20 238 . 61 6 . . . 8 . . 10 . 2 10 30 37 29 29 105 Core Hits 525 | . . 5 . . 19 67 30 21 1 . 10 . 7 10 8 13 16 107 . 30 2 . 16 . 5 . 3 10 4 1 5 22 26 16 19 52 Critical Hits 100 | . . . . . . . . . . . . . . 1 3 3 4 39 . 1 . . . . . . . . . 1 . 7 . 2 1 38 Critical Kills 25 | . . . . . . . . . . . . . . . . 1 4 13 . . . . . . . . . . . 1 . 3 . 1 1 1 Critical Parts Destroyed 58 | . . . . . . . . . . . . . . 1 2 2 . 25 . 1 . . . . . . . . . . . 3 . 1 . 23 Melee Attacks 386 | . . . . . . 10 . 11 3 14 25 . 2 3 12 1 5 12 . . . . . . . . . . . 4 29 27 61 60 53 54 Impact . | . . . . . . . . . . . . . . . . . . . . . . . . . . . . . . . . . . . . . Slashing 33 | . . . . . . . . . . . . . . 3 12 1 5 12 . . . . . . . . . . . . . . . . . . Piercing 353 | . . . . . . 10 . 11 3 14 25 . 2 . . . . . . . . . . . . . . . . 4 29 27 61 60 53 54 Sneak Attacks 35 | . . . . . . . . . 1 . 5 . . 2 12 1 . . . . . . . . . . . . . 1 2 1 4 4 1 1 Combat Hostiles 2 | . . . . . . . . . . . . . . . . . . . . . . . . . . . . . . . . . . 2 . . Follow-up Attacks 37 | . . . . . . . . . . . . . . . . . . . . . . . . . . . . . . . 1 . 10 9 7 10 Damage Inflicted 65212 | . . 127 . . 568 2789 2581 944 82 . 694 . 348 649 1332 941 1346 7976 . 3347 111 . 1242 . 375 . 529 70 363 201 620 1956 3977 2304 2378 27362 Guns 9063 | . . 103 . . 57 . 1202 . . . . . . 370 276 572 271 4818 . 1093 111 . . . . . . . . . . 190 . . . . Cannons 26586 | . . . . . 220 1495 568 54 . . . . . 68 247 249 258 2498 . 916 . . . . 375 . . 70 . . . . . . . 19568 Explosions 15057 | . . . . . 283 1261 811 737 . . 155 . 348 . . . 696 646 . 1338 . . 1242 . . . 529 . 363 . . 994 663 . 198 4793 Melee 14450 | . . . . . . 23 . 153 82 . 539 . . 211 809 120 121 . . . . . . . . . . . . 201 620 772 3314 2304 2180 3001 Ramming 32 | . . . . . 8 10 . . . . . . . . . . . 14 . . . . . . . . . . . . . . . . . . Kinetic 11669 | . . 103 . . 222 654 1284 . . . . . . 370 276 613 529 6212 . 1105 111 . . . . . . . . . . 190 . . . . Thermal 27639 | . . 24 . . 55 841 486 54 . . . . . 68 . . . 1214 . 536 . . . . . . . . . . . . . . . 24361 Explosive 8865 | . . . . . 283 1261 811 737 . . 155 . 348 . . . . 141 . 1338 . . 1242 . . . 529 . 363 . . 994 663 . . . Electromagnetic 2557 | . . . . . . . . . . . . . . . 247 208 696 395 . 368 . . . . 375 . . 70 . . . . . . 198 . Impact . | . . . . . . . . . . . . . . . . . . . . . . . . . . . . . . . . . . . . . Slashing 1261 | . . . . . . . . . . . . . . 211 809 120 121 . . . . . . . . . . . . . . . . . . . Piercing 13189 | . . . . . . 23 . 153 82 . 539 . . . . . . . . . . . . . . . . . . 201 620 772 3314 2304 2180 3001 Highest Corruption 13 | . . . . . 2 3 3 3 3 3 . 7 13 13 13 13 3 6 5 6 6 6 6 . 1 1 1 1 1 . . 1 6 7 3 5 Average Corruption 5 | . . . . . 2 2 3 3 3 3 . 7 10 13 13 8 1 3 5 5 6 6 6 . 1 1 1 1 1 . . 1 3 6 2 3 Corruption Purged 17 | . . . . . . . . . . . . . . . . 13 . 4 . . . . . . . . . . . . . . . . . . Effects 453 | . . . . . 3 31 18 13 5 3 . 1 29 53 25 88 1 40 3 49 5 2 . . 7 . 1 1 1 . . 2 17 25 3 27 Message Errors 107 | . . . . . 1 8 3 2 1 . . . 9 7 7 21 1 8 1 13 1 . . . 3 . . 1 . . . 2 7 6 . 5 Matter Fused 78 | . . . . . . 5 7 3 . 1 . . 5 8 2 18 . 5 1 6 . . . . . . . . . . . . 3 6 1 7 Heat Flow Errors 55 | . . . . . 1 4 3 4 1 1 . . 1 4 6 13 . 6 . 4 1 1 . . . . . . . . . . . 2 . 3 Energy Discharges 45 | . . . . . . 5 3 2 1 1 . . 1 4 . 10 . 2 1 6 1 . . . 1 . . . . . . . 3 1 . 3 Parts Rejected 2 | . . . . . . . . . . . . . . . . . . 1 . . 1 . . . . . . . . . . . . . . . Data Loss (minor) 71 | . . . . . 1 4 2 1 1 . . 1 2 9 1 11 . 6 . 11 1 1 . . 3 . 1 . 1 . . . 3 5 1 5 Data Loss (major) 16 | . . . . . . . . . . . . . 4 3 2 2 . . . 3 . . . . . . . . . . . . . 2 . . Misfires 8 | . . . . . . . . . . . . . . 1 . 5 . 2 . . . . . . . . . . . . . . . . . . Alerts 2 | . . . . . . . . . . . . . . 1 . 1 . . . . . . . . . . . . . . . . . . . . Misdirections 21 | . . . . . . . . . . . . . 6 12 1 2 . . . . . . . . . . . . . . . . . . . . Targeting Errors 43 | . . . . . . 5 . 1 1 . . . 1 4 6 4 . 7 . 6 . . . . . . . . . . . . 1 3 1 3 Weapon Failures 5 | . . . . . . . . . . . . . . . . 1 . 3 . . . . . . . . . . . . . . . . . 1 Overload Shots 2 | . . . . . . . . . . . . . . . . . . . . 1 . . 1 . . . . . . . . . . . . . Overflow Damage 3823 | . . . . . . 39 92 . . . 47 . 39 52 13 . 124 105 . 196 . . 104 . 6 . 145 . . . 111 91 248 206 130 2075 Projectiles 2161 | . . . . . . 12 56 . . . . . . 3 . . 56 80 . 126 . . . . 6 . . . . . . . . . . 1822 Explosions 815 | . . . . . . 27 36 . . . . . 39 . . . 68 25 . 70 . . 104 . . . 145 . . . . 57 32 . . 212 Melee 847 | . . . . . . . . . . . 47 . . 49 13 . . . . . . . . . . . . . . . 111 34 216 206 130 41 Knockbacks 32 | . . . . . . 11 . . . . . . . . . 1 1 15 . 4 . . . . . . . . . . . . . . . . Impact . | . . . . . . . . . . . . . . . . . . . . . . . . . . . . . . . . . . . . . Kinetic 29 | . . . . . . 10 . . . . . . . . . 1 1 13 . 4 . . . . . . . . . . . . . . . . Secondary 3 | . . . . . . 1 . . . . . . . . . . . 2 . . . . . . . . . . . . . . . . . . Self-Inflicted Damage 411 | . . . . . 113 . 30 . . . . . 37 . . . 125 . . . . . . . . . . . . . . . . . 54 52 Shots 11 | . . . . . 4 . 1 . . . . . 1 . . . 2 . . . . . . . . . . . . . . . . . 2 1 Rammed 5 | . . . . . 1 2 . . . . . . . . . . . 2 . . . . . . . . . . . . . . . . . . Targets Rammed 6 | . . . . . 2 2 . . . . . . . . . . . 2 . . . . . . . . . . . . . . . . . . Kicked . | . . . . . . . . . . . . . . . . . . . . . . . . . . . . . . . . . . . . . Crushed 1 | . . . . . 1 . . . . . . . . . . . . . . . . . . . . . . . . . . . . . . . Highest Temperature 424 | . . 15 . . 256 424 258 235 232 350 64 . 104 300 247 309 42 305 . 335 87 235 200 . 198 . 108 . 104 40 114 64 . 148 . 352 Average Temperature 100 | . . 10 . . 55 140 96 59 125 111 34 . 28 110 68 106 17 107 . 100 45 118 60 . 56 . 56 . 46 21 50 35 . 43 . 150 Received Heat Transfer 2161 | . . 9 . . 77 456 156 63 24 . . . 87 72 34 15 39 819 . 99 9 . 12 . 30 . 9 . . . . . . 18 45 88 Effects 10 | . . . . . . 3 . . . . . . . 2 . . . 2 . 2 . . . . . . . . . . . . . . . 1 Energy Bleed 2 | . . . . . . 1 . . . . . . . 1 . . . . . . . . . . . . . . . . . . . . . . Interference 5 | . . . . . . 1 . . . . . . . . . . . 2 . 2 . . . . . . . . . . . . . . . . Matter Decay 1 | . . . . . . 1 . . . . . . . . . . . . . . . . . . . . . . . . . . . . . . Short Circuit 1 | . . . . . . . . . . . . . . . . . . . . . . . . . . . . . . . . . . . . 1 Damage (minor) 1 | . . . . . . . . . . . . . . 1 . . . . . . . . . . . . . . . . . . . . . . Siege Activations 11 | . . . . . . . . . . . . . . . . . 1 9 . 1 . . . . . . . . . . . . . . . . Total Turns 336 | . . . . . . . . . . . . . . . . . 3 311 . 22 . . . . . . . . . . . . . . . . Longest Duration 101 | . . . . . . . . . . . . . . . . . 3 101 . 22 . . . . . . . . . . . . . . . . Robots Corrupted 4 | . . . . . . . . . . . . . . . 2 . . . . 1 . . . . . . . . . . . . . . 1 . Combat Hostiles 4 | . . . . . . . . . . . . . . . 2 . . . . 1 . . . . . . . . . . . . . . 1 . Parts Fried 10 | . . . . . . . . . . . . . . . . 1 2 3 . 1 . . . . 3 . . . . . . . . . . . Impact Corruptions . | . . . . . . . . . . . . . . . . . . . . . . . . . . . . . . . . . . . . . Robots Melted 2 | . . . . . . . . . . . . . . . . . . . . . . . . . . . . . . . . . . . . 2 Combat Hostiles 2 | . . . . . . . . . . . . . . . . . . . . . . . . . . . . . . . . . . . . 2 Parts Melted 8 | . . . . . . 1 . . . . . . . . . . . 2 . 4 . . . . . . . . . . . . . . . 1 Heat Transferred 10114 | . . 50 . . 74 1073 666 74 . . . . . 75 . . . 1450 . 531 . . . . . . . . . . . . . . . 6121 Parts Sabotaged . | . . . . . . . . . . . . . . . . . . . . . . . . . . . . . . . . . . . . . Parts Stolen 4 | . . . . . . . . 4 . . . . . . . . . . . . . . . . . . . . . . . . . . . . Parts Stripped . | . . . . . . . . . . . . . . . . . . . . . . . . . . . . . . . . . . . . . Power Chain Reactions 1 | . . . . . . . . . . . . . . . . . . 1 . . . . . . . . . . . . . . . . . . Missiles Intercepted . | . . . . . . . . . . . . . . . . . . . . . . . . . . . . . . . . . . . . . Alert | -11 -10 -10 -10 -9 -8 -7 -7 -7 -7 -6 -6 -6 -6 -6 -6 -6 -6 -5 -5 -5 -5 -5 -5 -4 -4 -4 -4 -4 -3 -3 -3 -2 -2 -2 -1 -1 ------- Run | Scr Mat Min Exi Min Mat Fac Low Low Dat Pro Fac Was Fac Ext Cet Arc Hub Fac Was Fac Upp Upp War Pro Fac Upp Upp Zhi Pro Res Tes Res Qua Sec Acc Com Peak Influence 1099 | . 8 91 . . 260 781 . . . . 545 205 589 277 669 454 988 1099 379 480 . . . . 178 . . . . 149 400 445 222 283 339 311 Initial 483 | . . 3 . . . 49 . . . . . 190 129 277 . 211 . 483 379 265 . . . . . . . . . 60 83 39 . 22 35 . Average 188 | . 6 32 . . 101 341 . . . . 196 192 217 97 310 104 318 338 379 280 . . . . 43 . . . . 103 140 136 33 84 97 67 Maximum Alert Level 3 | . . . . . 1 3 . . . . 2 1 2 1 2 2 3 3 1 2 . . . . . . . . . . 2 2 1 1 1 1 Low Security (%) 60 | . 100 100 . 100 78 37 . . . . 66 73 40 85 31 71 17 26 . 26 . . . . 100 . . . . 100 60 65 98 85 87 88 Level 1 24 | . . . . . 21 23 . . . . . 26 45 14 37 18 55 42 100 46 . . . . . . . . . . 38 33 1 15 12 12 Level 2 11 | . . . . . . 21 . . . . 33 . 14 . 31 9 22 17 . 26 . . . . . . . . . . . . . . . . Level 3 3 | . . . . . . 18 . . . . . . . . . . 4 12 . . . . . . . . . . . . . . . . . . Level 4 . | . . . . . . . . . . . . . . . . . . . . . . . . . . . . . . . . . . . . . Level 5 . | . . . . . . . . . . . . . . . . . . . . . . . . . . . . . . . . . . . . . High Security . | . . . . . . . . . . . . . . . . . . . . . . . . . . . . . . . . . . . . . Max Security . | . . . . . . . . . . . . . . . . . . . . . . . . . . . . . . . . . . . . . Squads Dispatched 60 | . . . . . 1 8 . . . . 2 . 3 1 . . 1 17 . 5 . . . . 3 . . . . . 2 5 4 3 5 . Investigation 8 | . . . . . . . . . . . 1 . 2 . . . . . . . . . . . 1 . . . . . . 3 . 1 . . Extermination 24 | . . . . . . 2 . . . . . . . . . . 1 6 . 4 . . . . 2 . . . . . 1 2 3 2 1 . Reinforcement 22 | . . . . . 1 5 . . . . 1 . 1 1 . . . 9 . 1 . . . . . . . . . . 1 . 1 . 1 . Assault 3 | . . . . . . 1 . . . . . . . . . . . 2 . . . . . . . . . . . . . . . . . . Garrison 3 | . . . . . . . . . . . . . . . . . . . . . . . . . . . . . . . . . . . 3 . Intercept . | . . . . . . . . . . . . . . . . . . . . . . . . . . . . . . . . . . . . . Construction Impeded 7 | . . . . . . 2 . . . . . . . 1 . . . 3 . . . . . . . . . . . . 1 . . . . . Haulers Reinforced 5 | . . . . . . 1 . . . . . . . . . . . 4 . . . . . . . . . . . . . . . . . . Stealth | -11 -10 -10 -10 -9 -8 -7 -7 -7 -7 -6 -6 -6 -6 -6 -6 -6 -6 -5 -5 -5 -5 -5 -5 -4 -4 -4 -4 -4 -3 -3 -3 -2 -2 -2 -1 -1 --------- Run | Scr Mat Min Exi Min Mat Fac Low Low Dat Pro Fac Was Fac Ext Cet Arc Hub Fac Was Fac Upp Upp War Pro Fac Upp Upp Zhi Pro Res Tes Res Qua Sec Acc Com Distress Signals 39 | . . . . . 1 . . . . . . . 1 3 1 . 2 5 . 1 . . 2 . 2 . . . . . . 1 1 4 1 14 Communications Jammed 1 | . . . . . . . . . . . . . . . . . . . . . . . . . 1 . . . . . . . . . . . Distress Signals 1 | . . . . . . . . . . . . . . . . . . . . . . . . . 1 . . . . . . . . . . . Times Spotted 494 | . . 5 . . 13 43 16 11 4 1 7 6 27 13 16 22 14 72 . 31 6 2 22 . 23 . 3 . . 4 5 19 18 21 21 49 Peak Tracking Total 12 | . . 3 . . 9 6 5 4 4 1 4 6 7 4 5 1 3 8 . 9 6 2 12 . 5 . 3 . 1 3 2 4 5 4 5 7 Tactical Retreats 42 | . . . . . . 2 1 . . 1 . . 8 . . . . 14 . 3 3 . 1 . 1 . 1 . . . . . . 2 4 1 Traps | -11 -10 -10 -10 -9 -8 -7 -7 -7 -7 -6 -6 -6 -6 -6 -6 -6 -6 -5 -5 -5 -5 -5 -5 -4 -4 -4 -4 -4 -3 -3 -3 -2 -2 -2 -1 -1 ------- Run | Scr Mat Min Exi Min Mat Fac Low Low Dat Pro Fac Was Fac Ext Cet Arc Hub Fac Was Fac Upp Upp War Pro Fac Upp Upp Zhi Pro Res Tes Res Qua Sec Acc Com Traps Triggered 13 | . . . . . 1 1 . . . . 2 . 3 1 . . . 3 . 1 . . . . . . . . . . . 1 . . . . Indirectly . | . . . . . . . . . . . . . . . . . . . . . . . . . . . . . . . . . . . . . Trap Hack Attempts . | . . . . . . . . . . . . . . . . . . . . . . . . . . . . . . . . . . . . . Triggered . | . . . . . . . . . . . . . . . . . . . . . . . . . . . . . . . . . . . . . Disarmed 10 | . . . . . . . . . . . . . . . . . . 4 . . . . . . 6 . . . . . . . . . . . Reprogrammed . | . . . . . . . . . . . . . . . . . . . . . . . . . . . . . . . . . . . . . Reused . | . . . . . . . . . . . . . . . . . . . . . . . . . . . . . . . . . . . . . Traps Extracted . | . . . . . . . . . . . . . . . . . . . . . . . . . . . . . . . . . . . . . Installed . | . . . . . . . . . . . . . . . . . . . . . . . . . . . . . . . . . . . . . Triggered 17 | . . . . . . . . . . . . . . . . . . . . . . . 12 2 . . . . . . . . . . . 3 Machines | -11 -10 -10 -10 -9 -8 -7 -7 -7 -7 -6 -6 -6 -6 -6 -6 -6 -6 -5 -5 -5 -5 -5 -5 -4 -4 -4 -4 -4 -3 -3 -3 -2 -2 -2 -1 -1 ---------- Run | Scr Mat Min Exi Min Mat Fac Low Low Dat Pro Fac Was Fac Ext Cet Arc Hub Fac Was Fac Upp Upp War Pro Fac Upp Upp Zhi Pro Res Tes Res Qua Sec Acc Com Machines Disabled 77 | . . . . . . 3 . . . . 3 . . . . 3 28 9 . 11 . . 2 . 1 . . . . . 6 . 3 8 . . Max in Single Turn 27 | . . . . . . 1 . . . . 1 . . . . 1 27 4 . 5 . . 2 . 1 . . . . . 1 . 1 1 . . Garrison Access 9 | . . . . . . 1 . . . . 3 . . . . . . 1 . . . . . . 2 . . . . . . 1 . 1 . . Network Hub 2 | . . . . . . . . . . . . . . . . . 2 . . . . . . . . . . . . . . . . . . . Machines Sabotaged . | . . . . . . . . . . . . . . . . . . . . . . . . . . . . . . . . . . . . . Garrisons Compromised . | . . . . . . . . . . . . . . . . . . . . . . . . . . . . . . . . . . . . . Overloaded Fab Kills . | . . . . . . . . . . . . . . . . . . . . . . . . . . . . . . . . . . . . . Fab Network Shutdowns 6 | . . . . . . 1 . . . . 1 . 1 . . . . 1 . . . . . . . . . . . . 1 1 . . . . Hacking | -11 -10 -10 -10 -9 -8 -7 -7 -7 -7 -6 -6 -6 -6 -6 -6 -6 -6 -5 -5 -5 -5 -5 -5 -4 -4 -4 -4 -4 -3 -3 -3 -2 -2 -2 -1 -1 --------- Run | Scr Mat Min Exi Min Mat Fac Low Low Dat Pro Fac Was Fac Ext Cet Arc Hub Fac Was Fac Upp Upp War Pro Fac Upp Upp Zhi Pro Res Tes Res Qua Sec Acc Com Machines Accessed 151 | . 2 1 1 . 3 5 1 1 3 . 6 . 8 14 1 . 2 15 . 11 . . 5 . 12 . . 4 . 5 12 9 12 11 7 . Terminals 95 | . 2 . . . 3 3 . . . . 2 . 6 14 1 . 2 10 . 5 . . . . 8 . . . . 3 9 5 9 8 5 . Fabricators 14 | . . . . . . 1 . . . . 1 . 1 . . . . 2 . 2 . . . . 1 . . . . 1 1 3 . . 1 . Repair Stations 10 | . . . . . . . . . . . . . . . . . . 2 . 2 . . . . 1 . . . . 1 1 . 1 1 1 . Recycling Units 2 | . . . . . . . . . . . . . 1 . . . . . . 1 . . . . . . . . . . . . . . . . Scanalyzers 5 | . . . . . . . . . . . . . . . . . . . . 1 . . . . . . . . . . 1 . 2 1 . . Garrison Access 9 | . . . . . . 1 . . . . 3 . . . . . . 1 . . . . . . 2 . . . . . . 1 . 1 . . Total Hacks 693 | . 6 1 1 . 7 19 1 1 23 . 16 . 30 45 2 . 4 111 . 80 . . 18 . 69 . . 17 . 29 60 51 33 44 25 . Successful 524 | . 1 1 1 . 3 12 1 1 23 . 13 . 20 33 1 . 2 69 . 53 . . 18 . 50 . . 17 . 19 50 47 31 39 19 . Failed 163 | . 5 . . . 4 7 . . . . 3 . 10 11 1 . 2 41 . 27 . . . . 18 . . . . 9 10 3 1 5 6 . Catastrophic 14 | . 1 . . . 1 1 . . . . . . . . . . . 4 . 2 . . . . 1 . . . . 2 . . . 1 1 . Database Lockouts 6 | . . . . . . . . . . . . . . 1 . . . 1 . . . . . . 1 . . . . 1 . 1 1 . . . Manual 329 | . 3 . 1 . 4 10 . . . . 6 . 16 26 3 . 3 50 . 36 . . . . 37 . . . . 10 45 32 17 19 11 . Terminals 449 | . 6 . . . 7 11 . . . . 8 . 24 45 2 . 4 87 . 43 . . . . 45 . . . . 17 44 30 23 34 19 . Fabricators 99 | . . . . . . 7 . . . . 4 . 4 . . . . 12 . 17 . . . . 17 . . . . 6 8 20 . . 4 . Repair Stations 49 | . . . . . . . . . . . . . . . . . . 10 . 16 . . . . 4 . . . . 6 2 . 4 5 2 . Recycling Units 4 | . . . . . . . . . . . . . 2 . . . . . . 2 . . . . . . . . . . . . . . . . Scanalyzers 18 | . . . . . . . . . . . . . . . . . . . . 2 . . . . . . . . . . 6 . 6 4 . . Garrison Access 12 | . . . . . . 1 . . . . 4 . . . . . . 2 . . . . . . 3 . . . . . . 1 . 1 . . Terminal Hacks 285 | . 1 1 1 . 2 3 1 1 23 . 3 . 13 23 . . 1 39 . 17 . . 18 . 21 . . 17 . 8 26 19 15 21 11 . Record 25 | . . . . . . . . . 6 . . . . . . . . . . . . . 13 . . . . 5 . . . . 1 . . . Part Schematic 39 | . . . . . . . . . 8 . 1 . 4 . . . . 4 . 1 . . . . 2 . . 4 . 1 7 3 2 1 1 . Robot Schematic 6 | . . . . . . . . . 6 . . . . . . . . . . . . . . . . . . . . . . . . . . . Robot Analysis 16 | . . . . . . 1 . . . . . . . 2 . . . 1 . 1 . . . . 1 . . 4 . . 6 . . . . . Prototype ID Bank 22 | . . . . . . . . . 3 . . . 2 1 . . . 2 . . . . 4 . 3 . . 4 . . . . 1 2 . . Open Door 22 | . . 1 . . . . 1 1 . . . . 1 9 . . . . . . . . 1 . . . . . . . . 1 2 2 3 . Branch Access Points 12 | . 1 . . . 2 1 . . . . . . 1 . . . . 1 . 2 . . . . 1 . . . . 1 . 1 . . 1 . Emergency Access Points 5 | . . . . . . . . . . . . . 1 . . . . . . . . . . . . . . . . 1 . . . 2 1 . Machine Index 6 | . . . . . . . . . . . . . . . . . . 1 . 1 . . . . . . . . . 1 . 1 . 1 1 . Terminal Index 9 | . . . . . . 1 . . . . 1 . . 1 . . 1 1 . 1 . . . . 1 . . . . 1 . 1 . . . . Fabricator Index 3 | . . . . . . . . . . . 1 . 1 . . . . 1 . . . . . . . . . . . . . . . . . . Alert Level 13 | . . . . . . . . . . . . . . 2 . . . 2 . 2 . . . . 1 . . . . . 2 1 2 1 . . Unreport Threat 38 | . . . . . . . . . . . . . . 4 . . . 6 . 4 . . . . 1 . . . . . 6 6 3 4 4 . Locate Traps 17 | . . . . . . . . . . . . . 1 1 . . . 5 . 2 . . . . 3 . . . . 1 . . . 4 . . Disarm Traps 2 | . . . . . . . . . . . . . . . . . . 1 . . . . . . 1 . . . . . . . . . . . Dispatch Records 5 | . . . . . . . . . . . . . . . . . . 3 . . . . . . 1 . . . . . 1 . . . . . Recall Investigation 3 | . . . . . . . . . . . . . . . . . . . . . . . . . . . . . . . . 2 . 1 . . Recall Extermination 14 | . . . . . . . . . . . . . . . . . . 3 . 2 . . . . 2 . . . . . 1 2 2 2 . . Recall Reinforcements 5 | . . . . . . . . . . . . . . 1 . . . 2 . . . . . . . . . . . . 1 . 1 . . . Recall Assault 1 | . . . . . . . . . . . . . . . . . . 1 . . . . . . . . . . . . . . . . . . Hauler Manifests 9 | . . . . . . . . . . . . . . 1 . . . 2 . . . . . . 2 . . . . 1 1 1 . 1 . . Registered Prototypes 2 | . . . . . . . . . . . . . . . . . . 1 . . . . . . . . . . . 1 . . . . . . Zone Layout 10 | . . . . . . . . . . . . . 2 1 . . . 2 . 1 . . . . 2 . . . . . 1 . 1 . . . EX-Prototype ID Bank 1 | . . . 1 . . . . . . . . . . . . . . . . . . . . . . . . . . . . . . . . . Fabricator Hacks 61 | . . . . . . 5 . . . . 4 . 4 . . . . 6 . 7 . . . . 10 . . . . 4 6 13 . . 2 . Network Status 6 | . . . . . . . . . . . . . . . . . . 1 . 1 . . . . 3 . . . . . . 1 . . . . Load Schematic 22 | . . . . . . . . . . . 2 . 2 . . . . 2 . 3 . . . . 2 . . . . 1 2 7 . . 1 . Build 33 | . . . . . . 5 . . . . 2 . 2 . . . . 3 . 3 . . . . 5 . . . . 3 4 5 . . 1 . Repair Station Hacks 42 | . . . . . . . . . . . . . . . . . . 9 . 12 . . . . 4 . . . . 4 2 . 4 5 2 . Scan Component 22 | . . . . . . . . . . . . . . . . . . 5 . 6 . . . . 2 . . . . 2 1 . 2 3 1 . Repair 20 | . . . . . . . . . . . . . . . . . . 4 . 6 . . . . 2 . . . . 2 1 . 2 2 1 . Recycling Unit Hacks 4 | . . . . . . . . . . . . . 2 . . . . . . 2 . . . . . . . . . . . . . . . . Process 2 | . . . . . . . . . . . . . 1 . . . . . . 1 . . . . . . . . . . . . . . . . Retrieve Matter 2 | . . . . . . . . . . . . . 1 . . . . . . 1 . . . . . . . . . . . . . . . . Scanalyzer 18 | . . . . . . . . . . . . . . . . . . . . 2 . . . . . . . . . . 6 . 6 4 . . Insert Component 16 | . . . . . . . . . . . . . . . . . . . . 2 . . . . . . . . . . 4 . 6 4 . . Analyze 2 | . . . . . . . . . . . . . . . . . . . . . . . . . . . . . . . 2 . . . . . Garrison Access Hacks 10 | . . . . . . 1 . . . . 4 . . . . . . 1 . . . . . . 2 . . . . . . 1 . 1 . . Seal Access 9 | . . . . . . 1 . . . . 3 . . . . . . 1 . . . . . . 2 . . . . . . 1 . 1 . . Coupler Status 1 | . . . . . . . . . . . 1 . . . . . . . . . . . . . . . . . . . . . . . . . Unauthorized Hacks 104 | . . . . . 1 3 . . . . 2 . 1 10 1 . 1 14 . 13 . . . . 13 . . . . 3 10 14 6 8 4 . Terminals 77 | . . . . . 1 2 . . . . 2 . 1 10 1 . 1 8 . 8 . . . . 10 . . . . 1 8 7 6 8 3 . Track 26 | . . . . . . . . . . . . . . 2 1 . 1 3 . 1 . . . . 5 . . . . . 4 2 3 4 . . Assimilate 14 | . . . . . . . . . . . . . 1 . . . . 2 . 3 . . . . 2 . . . . . 2 2 1 . 1 . Botnet 24 | . . . . . . 2 . . . . 1 . . 5 . . . 2 . 3 . . . . 2 . . . . 1 2 2 . 2 2 . Disrupt 7 | . . . . . 1 . . . . . . . . 3 . . . . . . . . . . . . . . . . . . 2 1 . . Operators 6 | . . . . . . . . . . . 1 . . . . . . 1 . 1 . . . . 1 . . . . . . 1 . 1 . . Fabricators 27 | . . . . . . 1 . . . . . . . . . . . 6 . 5 . . . . 3 . . . . 2 2 7 . . 1 . Report 5 | . . . . . . 1 . . . . . . . . . . . 1 . 1 . . . . 1 . . . . . . 1 . . . . Prioritize 11 | . . . . . . . . . . . . . . . . . . 2 . 2 . . . . 1 . . . . 1 1 3 . . 1 . Siphon 10 | . . . . . . . . . . . . . . . . . . 2 . 2 . . . . 1 . . . . 1 1 3 . . . . Haulers 1 | . . . . . . . . . . . . . . . . . . 1 . . . . . . . . . . . . . . . . . . Repair Stations . | . . . . . . . . . . . . . . . . . . . . . . . . . . . . . . . . . . . . . Recycling Units . | . . . . . . . . . . . . . . . . . . . . . . . . . . . . . . . . . . . . . Scanalyzers . | . . . . . . . . . . . . . . . . . . . . . . . . . . . . . . . . . . . . . Garrison Access . | . . . . . . . . . . . . . . . . . . . . . . . . . . . . . . . . . . . . . Data Cores Recovered 1 | . . . . . . . . . . . . . . . . . . . . . . . . . . . . . . . . . . 1 . . Used . | . . . . . . . . . . . . . . . . . . . . . . . . . . . . . . . . . . . . . Hacking Detections 88 | . 1 . . . 3 4 . . . . 3 . 7 7 1 . 2 10 . 9 . . . . 7 . . . . 4 7 6 4 8 5 . Full Trace Events 6 | . . . . . . . . . . . 1 . 2 . . . . . . . . . . . . . . . . . . 2 . 1 . . Feedback Events 2 | . . . . . . . . . . . . . 1 . . . . . . . . . . . . . . . . . . 1 . . . . Corruption 1 | . . . . . . . . . . . . . 1 . . . . . . . . . . . . . . . . . . . . . . . Hackware Fried 1 | . . . . . . . . . . . . . . . . . . . . . . . . . . . . . . . . 1 . . . . Feedback Blocked . | . . . . . . . . . . . . . . . . . . . . . . . . . . . . . . . . . . . . . Robot Schematics Acquired 6 | . . . . . . . . . 6 . . . . . . . . . . . . . . . . . . . . . . . . . . . Robots Built . | . . . . . . . . . . . . . . . . . . . . . . . . . . . . . . . . . . . . . Matter . | . . . . . . . . . . . . . . . . . . . . . . . . . . . . . . . . . . . . . Time . | . . . . . . . . . . . . . . . . . . . . . . . . . . . . . . . . . . . . . Total Robot Build Rating . | . . . . . . . . . . . . . . . . . . . . . . . . . . . . . . . . . . . . . Part Schematics Acquired 40 | . . . . . . . . . 8 . 1 . 4 . . . . 4 . 1 . . . . 2 . . 4 . 1 8 3 2 1 1 . Parts Built 33 | . . . . . . 3 . . . . 3 . 3 . . . . 3 . 3 . . . . 5 . . . . 3 3 6 . . 1 . Matter 7529 | . . . . . . 570 . . . . 453 . 314 . . . . 639 . 664 . . . . 1315 . . . . 789 936 1432 . . 417 . Time 1612 | . . . . . . 285 . . . . 118 . 157 . . . . 228 . 156 . . . . 230 . . . . 93 111 197 . . 37 . Total Part Build Rating 214 | . . . . . . 15 . . . . 13 . 10 . . . . 15 . 16 . . . . 35 . . . . 21 27 53 . . 9 . Parts Repaired 20 | . . . . . . . . . . . . . . . . . . 4 . 6 . . . . 2 . . . . 2 1 . 2 2 1 . Time 1216 | . . . . . . . . . . . . . . . . . . 354 . 311 . . . . 188 . . . . 59 40 . 179 59 26 . Parts Recycled . | . . . . . . . . . . . . . . . . . . . . . . . . . . . . . . . . . . . . . Recycled Matter 141 | . . . . . . . . . . . . . 24 . . . . . . 117 . . . . . . . . . . . . . . . . Retrieved Matter 141 | . . . . . . . . . . . . . 24 . . . . . . 117 . . . . . . . . . . . . . . . . Retrieved Components . | . . . . . . . . . . . . . . . . . . . . . . . . . . . . . . . . . . . . . Parts Scanalyzed 1 | . . . . . . . . . . . . . . . . . . . . . . . . . . . . . . . 1 . . . . . Part Schematics Acquired 1 | . . . . . . . . . . . . . . . . . . . . . . . . . . . . . . . 1 . . . . . Parts Damaged . | . . . . . . . . . . . . . . . . . . . . . . . . . . . . . . . . . . . . . Bothacking | -11 -10 -10 -10 -9 -8 -7 -7 -7 -7 -6 -6 -6 -6 -6 -6 -6 -6 -5 -5 -5 -5 -5 -5 -4 -4 -4 -4 -4 -3 -3 -3 -2 -2 -2 -1 -1 ------------ Run | Scr Mat Min Exi Min Mat Fac Low Low Dat Pro Fac Was Fac Ext Cet Arc Hub Fac Was Fac Upp Upp War Pro Fac Upp Upp Zhi Pro Res Tes Res Qua Sec Acc Com Used RIF Installer . | . . . . . . . . . . . . . . . . . . . . . . . . . . . . . . . . . . . . . Robots Hacked 1 | . . . . . . . . . . . 1 . . . . . . . . . . . . . . . . . . . . . . . . . Non-combat 1 | . . . . . . . . . . . 1 . . . . . . . . . . . . . . . . . . . . . . . . . Combat . | . . . . . . . . . . . . . . . . . . . . . . . . . . . . . . . . . . . . . Robot Hacks Applied 1 | . . . . . . . . . . . 1 . . . . . . . . . . . . . . . . . . . . . . . . . find_chute 1 | . . . . . . . . . . . 1 . . . . . . . . . . . . . . . . . . . . . . . . . Relay Couplers Released 4 | . . . . . . . . . . . . . . . . . 4 . . . . . . . . . . . . . . . . . . . Programmers 4 | . . . . . . . . . . . . . . . . . 4 . . . . . . . . . . . . . . . . . . . Robots Rewired 11 | . . . . . . . . . . . . . . 11 . . . . . . . . . . . . . . . . . . . . . . Allies Hacked 1 | . . . . . . . . . . . . . . . 1 . . . . . . . . . . . . . . . . . . . . . Hacks Repelled 1 | . . . . . . . . . . . . . . . . . . . . . . . . . 1 . . . . . . . . . . . Allies | -11 -10 -10 -10 -9 -8 -7 -7 -7 -7 -6 -6 -6 -6 -6 -6 -6 -6 -5 -5 -5 -5 -5 -5 -4 -4 -4 -4 -4 -3 -3 -3 -2 -2 -2 -1 -1 -------- Run | Scr Mat Min Exi Min Mat Fac Low Low Dat Pro Fac Was Fac Ext Cet Arc Hub Fac Was Fac Upp Upp War Pro Fac Upp Upp Zhi Pro Res Tes Res Qua Sec Acc Com Total Allies 51 | . . 5 . . . . . . . . 3 1 1 24 5 . . 1 . 3 . . . . 2 . . . . . 2 2 1 . 1 . Largest Group 13 | . . 5 1 . . . . . . . 3 1 1 13 13 4 4 1 . 2 . . . . 1 . . . . . 2 3 3 . 1 . Highest-Rated Group 820 | . . 85 31 . . . . . . . 93 31 26 418 820 376 369 26 . 52 . . . . 44 . . . . . 36 93 93 . 44 . Highest-Rated Ally 156 | . . 31 31 . . . . . . . 31 31 26 156 156 94 94 26 . 26 . . . . 44 . . . . . 26 44 44 . 44 . Total Orders 52 | . . . . . . . . . . . . . . 2 3 3 1 2 . 4 . . . . . . . . . . 16 15 6 . . . STAY 28 | . . . . . . . . . . . . . . 1 2 1 1 1 . 3 . . . . . . . . . . 8 8 3 . . . FOLLOW 24 | . . . . . . . . . . . . . . 1 1 2 . 1 . 1 . . . . . . . . . . 8 7 3 . . . Ally Attacks 261 | . . 19 . . . . . . . . 10 5 . 85 92 31 19 . . . . . . . . . . . . . . . . . . . Total Damage 7248 | . . 346 . . . . . . . . 123 62 . 1995 2707 1261 754 . . . . . . . . . . . . . . . . . . . Kills 48 | . . 4 . . . . . . . . . . . 14 19 3 8 . . . . . . . . . . . . . . . . . . . Allies Corrupted . | . . . . . . . . . . . . . . . . . . . . . . . . . . . . . . . . . . . . . Allies Melted . | . . . . . . . . . . . . . . . . . . . . . . . . . . . . . . . . . . . . . Intel | -11 -10 -10 -10 -9 -8 -7 -7 -7 -7 -6 -6 -6 -6 -6 -6 -6 -6 -5 -5 -5 -5 -5 -5 -4 -4 -4 -4 -4 -3 -3 -3 -2 -2 -2 -1 -1 ------- Run | Scr Mat Min Exi Min Mat Fac Low Low Dat Pro Fac Was Fac Ext Cet Arc Hub Fac Was Fac Upp Upp War Pro Fac Upp Upp Zhi Pro Res Tes Res Qua Sec Acc Com Robot Analysis Total 16 | . . . . . . 1 . . . . . . . 2 . . . 1 . 1 . . . . 1 . . 4 . . 6 . . . . . Derelict Logs Recovered 6 | . . 2 . . . . 1 . . . . . . . . . . . . . 2 . . . . 1 . . . . . . . . . . Drone Launches . | . . . . . . . . . . . . . . . . . . . . . . . . . . . . . . . . . . . . . Drone Recoveries . | . . . . . . . . . . . . . . . . . . . . . . . . . . . . . . . . . . . . . Exploration | -11 -10 -10 -10 -9 -8 -7 -7 -7 -7 -6 -6 -6 -6 -6 -6 -6 -6 -5 -5 -5 -5 -5 -5 -4 -4 -4 -4 -4 -3 -3 -3 -2 -2 -2 -1 -1 ------------- Run | Scr Mat Min Exi Min Mat Fac Low Low Dat Pro Fac Was Fac Ext Cet Arc Hub Fac Was Fac Upp Upp War Pro Fac Upp Upp Zhi Pro Res Tes Res Qua Sec Acc Com Turns Passed 26067 | . 153 782 921 24 678 2140 766 697 199 282 762 41 579 846 482 2845 507 3628 141 1649 135 120 523 55 1212 48 146 115 117 303 674 723 1138 780 756 1100 Spaces Moved 20452 | 1 107 518 540 14 261 833 308 246 111 236 885 106 1127 549 177 141 192 1749 266 976 300 330 898 157 1209 170 271 155 301 426 1080 1299 1429 1550 828 706 Core 107 | . . . . . . . . . . 36 . . . 14 . . . . . 57 . . . . . . . . . . . . . . . . Treads 4178 | . . 210 540 14 261 833 308 246 60 . . . . . 149 141 192 1224 . . . . . . . . . . . . . . . . . . Legs 896 | 1 107 308 . . . . . . . . . . . 452 28 . . . . . . . . . . . . . . . . . . . . . Wheels . | . . . . . . . . . . . . . . . . . . . . . . . . . . . . . . . . . . . . . Hover . | . . . . . . . . . . . . . . . . . . . . . . . . . . . . . . . . . . . . . Flight 15271 | . . . . . . . . . 51 200 885 106 1127 83 . . . 525 266 919 300 330 898 157 1209 170 271 155 301 426 1080 1299 1429 1550 828 706 Fastest Speed 17 | 120 120 120 160 180 180 190 190 230 37 37 32 32 32 115 125 160 160 35 32 27 25 25 24 27 27 27 27 27 27 27 22 22 22 17 17 17 Average Speed 64 | 120 120 136 168 180 187 194 220 230 153 58 37 32 32 125 154 160 160 122 49 65 28 26 27 27 28 27 27 45 27 27 23 22 22 17 17 17 Slowest Speed 500 | 120 120 160 180 180 190 210 230 230 230 500 120 32 112 350 160 160 160 160 107 435 112 27 97 27 97 27 27 97 27 27 27 102 102 22 17 107 Overloaded Moves 98 | . . . . . . . . . . . . . 38 . . . . . . 49 7 4 . . . . . . . . . . . . . . Propulsion Burnouts . | . . . . . . . . . . . . . . . . . . . . . . . . . . . . . . . . . . . . . Robots Hopped 58 | . . . . . . . . . 1 . . . 7 . . . . . . 7 . . 1 . 16 1 2 . . 5 10 1 5 . 1 1 Cave-ins Triggered . | . . . . . . . . . . . . . . . . . . . . . . . . . . . . . . . . . . . . . Exploration Rate (%) 48 | 3 23 95 68 12 26 33 56 53 81 37 20 97 28 63 59 82 19 45 90 26 58 57 78 38 26 34 55 60 57 15 79 29 79 69 21 21 Regions Visited 36 Branch Regions 23 Pre-discovered Areas 5 | . . . . . . . . . 1 . . . . . . . . . . . . . 1 . . . . 3 . . . . . . . . Known Exits Taken 27 | . 1 . . . . 1 1 1 1 1 . . 1 1 1 1 1 . . 1 1 1 1 1 1 1 1 1 1 1 1 1 1 1 1 . Unknown Exits Taken 5 | 1 . 1 1 1 1 . . . . . . . . . . . . . . . . . . . . . . . . . . . . . . . Scrap Searched 13 | . . 1 . . . . 1 . . 1 . . . . . . . . . . 2 . . 3 . 2 2 . 1 . . . . . . . Spaces Dug 494 | . . 1 . . 8 12 . 5 1 13 13 . 4 4 . . 301 31 . 18 . 1 6 1 11 . . . 5 3 10 6 5 10 15 10 Terrain Destroyed 1258 | . . 1 . . 42 48 82 71 1 16 13 . 25 20 7 6 308 190 . 88 . 2 28 1 14 . 45 . 18 3 10 32 68 16 15 88 Melee 80 | . . . . . . 5 . 3 1 9 11 . 2 . . . . 12 . . . . . . . . . . . . 5 4 5 10 13 . Projectile 345 | . . 1 . . 1 14 12 18 . 7 2 . 6 20 7 6 7 107 . 25 . 2 6 1 14 . . . 6 3 5 2 . 6 2 65 AOE 833 | . . . . . 41 29 70 50 . . . . 17 . . . 301 71 . 63 . . 22 . . . 45 . 12 . . 26 63 . . 23 Terrain Rammed . | . . . . . . . . . . . . . . . . . . . . . . . . . . . . . . . . . . . . . Walls Destroyed . | . . . . . . . . . . . . . . . . . . . . . . . . . . . . . . . . . . . . . Machines Disabled . | . . . . . . . . . . . . . . . . . . . . . . . . . . . . . . . . . . . . . Actions | -11 -10 -10 -10 -9 -8 -7 -7 -7 -7 -6 -6 -6 -6 -6 -6 -6 -6 -5 -5 -5 -5 -5 -5 -4 -4 -4 -4 -4 -3 -3 -3 -2 -2 -2 -1 -1 --------- Run | Scr Mat Min Exi Min Mat Fac Low Low Dat Pro Fac Was Fac Ext Cet Arc Hub Fac Was Fac Upp Upp War Pro Fac Upp Upp Zhi Pro Res Tes Res Qua Sec Acc Com Total 32118 | . 130 568 554 13 431 1220 357 327 138 333 1278 114 1326 689 361 2718 357 2920 275 1900 341 360 1168 168 2036 169 336 189 330 599 1451 1677 2224 2000 1407 1654 Wait 9325 | . 18 22 . . 121 232 . . 4 45 318 . 167 49 134 2519 138 837 4 708 22 19 221 2 733 . 61 14 15 154 285 275 684 312 504 708 Move 20307 | . 106 517 539 13 260 833 307 245 108 235 885 105 1113 548 176 140 191 1749 265 961 299 329 895 156 1178 167 266 154 300 416 1059 1296 1418 1549 825 704 Hop 54 | . . . . . . . . . 1 . . . 6 . . . . . . 7 . . 1 . 14 1 2 . . 4 10 1 5 . 1 1 Pick Up 280 | . 2 4 9 . 11 18 4 13 7 1 14 4 4 5 4 8 1 20 3 20 4 4 7 3 14 . . 1 1 3 16 18 24 12 4 17 Fast Attach 90 | . 1 2 1 . 5 1 1 3 . 1 4 . 2 2 5 2 . 7 1 7 1 . 7 . 3 . . 4 . 3 6 . 3 13 1 4 Attach 191 | . . 3 . . 1 3 6 . 5 6 6 . 9 7 4 1 1 22 1 35 1 1 4 1 18 . 1 1 3 4 5 7 3 5 3 24 Detach 161 | . . . . . 1 1 2 . 8 4 5 . 8 2 5 1 1 17 . 38 . 1 5 1 17 . 1 1 3 2 6 4 3 3 . 21 Swap 279 | . . 3 1 . 6 8 3 5 . . 2 . 3 5 2 2 6 46 . 22 4 . 5 2 21 1 2 . . 3 9 7 18 47 23 23 Drop 256 | . 2 2 4 . 10 13 2 13 2 . 12 5 2 5 9 3 1 19 1 16 4 4 15 2 11 . . 4 1 3 23 14 18 10 2 24 Fire 787 | . 1 15 . . 14 100 32 37 . 27 7 . 10 14 10 41 13 178 . 80 6 2 8 1 27 . 3 10 7 3 5 29 3 9 9 86 Melee 317 | . . . . . . 10 . 11 3 14 25 . 2 3 12 1 5 12 . . . . . . . . . . . 4 27 26 45 40 35 42 Ram . | . . . . . . . . . . . . . . . . . . . . . . . . . . . . . . . . . . . . . Kick . | . . . . . . . . . . . . . . . . . . . . . . . . . . . . . . . . . . . . . Crush 5 | . . . . . 2 1 . . . . . . . . . . . 2 . . . . . . . . . . . . . . . . . . Escape Stasis 22 | . . . . . . . . . . . . . . 5 . . . 11 . 6 . . . . . . . . . . . . . . . . Rewire 44 | . . . . . . . . . . . . . . 44 . . . . . . . . . . . . . . . . . . . . . . Trap . | . . . . . . . . . . . . . . . . . . . . . . . . . . . . . . . . . . . . . Miscellaneous . | . . . . . . . . . . . . . . . . . . . . . . . . . . . . . . . . . . . . . Route ------- -11/Scrapyard -10/Materials -10/Mines (discovered 3 exits: [*Mat x2] / *Exi) -10/Exiles -9/Mines -8/Materials -7/Factory (discovered 3 exits: Sto / *Low x2) -7/Lower Caves -7/Lower Caves -7/Data Miner -6/Proximity Caves -6/Factory (discovered 2 exits: *Low / *Ext) -6/Waste -6/Factory (discovered 4 exits: Low x2 / *Ext x2) -6/Extension (discovered 2 exits: *Fac / *Cet) -6/Cetus (discovered 2 exits: *Fac / *Arc) -6/Archives (discovered 3 exits: *Fac / *Hub x2) -6/Hub_04(d) (discovered 3 exits: *Fac x3) -5/Factory (discovered 3 exits: Fac / *Upp x2) -5/Waste -5/Factory (discovered 2 exits: *Upp x2) -5/Upper Caves -5/Upper Caves (discovered 2 exits: Fac / *War) -5/Warlord -4/Proximity Caves -4/Factory (discovered 2 exits: *Upp x2) -4/Upper Caves -4/Upper Caves (discovered 2 exits: *Res / *Zhi) -4/Zhirov -3/Proximity Caves -3/Research (discovered 3 exits: Arm / *Tes x2) -3/Testing -2/Research (discovered 4 exits: *Acc x2 / *Qua x2) -2/Quarantine (discovered 2 exits: *Acc / *Sec) -2/Section 7 -1/Access -1/Command (discovered 2 exits: Sur x2) By MAIN.C's Side History --------- Turn | Location | Event 1 | -11/Scrapyard | Discovered new exit (range 0) 1 | -11/Scrapyard | Entered Materials 31 | -10/Materials | Identified exit to Mines 154 | -10/Materials | Entered Mines 168 | -10/Mines | Discovered new exit (range 8) 265 | -10/Mines | Assembled infested the area 309 | -10/Mines | Build established: Mutant 380 | -10/Mines | Learned Materials security intel 394 | -10/Mines | Received a Rocket Launcher from a helpful Derelict 486 | -10/Mines | Assisted by bots powering up and referring to "LRC-V3" 570 | -10/Mines | Core integrity fell below 50% 601 | -10/Mines | Lost 6 parts (1p1n1u3w) 627 | -10/Mines | Discovered new exit (range 8) 702 | -10/Mines | Met a Derelict who couldn't figure out how to use a Trap Extractor 921 | -10/Mines | Deemed a non-threat by the Exiles lab entrance 922 | -10/Mines | Discovered new exit (range 5) 936 | -10/Mines | Entered Exiles 936 | -10/Exiles | Accompanied by 1 ally 966 | -10/Exiles | Led the pair of lost Derelicts to a safe place 975 | -10/Exiles | Met 8R-AWN 1004 | -10/Exiles | Met EX-HEX 1047 | -10/Exiles | Met EX-BIN 1069 | -10/Exiles | Aligned with FarCom system 1071 | -10/Exiles | Given EX-Vault access code 1114 | -10/Exiles | Opened EX-Vault 1127 | -10/Exiles | Found Lightpack 2.0 1133 | -10/Exiles | Found Chronowheel 1136 | -10/Exiles | Found AWS/Gauss 1172 | -10/Exiles | Warned to stay clear of 0b10 Research branches 1223 | -10/Exiles | Met EX-DEC 1796 | -10/Exiles | Discovered new exit (range 14) 1857 | -10/Exiles | Stole three prototypes: Lightpack 2.0, Chronowheel, AWS/Gauss 1857 | -10/Exiles | Entered Mines 1857 | -9/Mines | Discovered new exit (range 14) 1881 | -9/Mines | Entered Materials 1881 | -8/Materials | Evolved 4 slots: Utility x4 2484 | -8/Materials | Discovered new exit (range 20) 2559 | -8/Materials | Entered Factory 2559 | -7/Factory | Evolved 2 slots: Utility x2 2560 | -7/Factory | Identified exit to Storage 2561 | -7/Factory | FarCom data flow suspended 2796 | -7/Factory | Build established: Hauler-Mutant 3066 | -7/Factory | Fabricated Imp. Hacking Suite? 3186 | -7/Factory | Fabricated Imp. Hacking Suite? 3312 | -7/Factory | Fabricated Imp. Hacking Suite? 3355 | -7/Factory | Local fabrication network quarantined 4034 | -7/Factory | Identified exit to Lower Caves 4559 | -7/Factory | First assault squad dispatched 4699 | -7/Factory | Entered Lower Caves 4701 | -7/Lower Caves | Attracted the attention of an 0b10 checkpoint 4878 | -7/Lower Caves | Spotted B-75 Beast 4922 | -7/Lower Caves | Destroyed B-75 Beast 4949 | -7/Lower Caves | Lost 5 parts (1n3u1w) 5144 | -7/Lower Caves | Learned Factory stockpile data 5399 | -7/Lower Caves | Discovered new exit (range 5) 5406 | -7/Lower Caves | Identified exit to Lower Caves 5465 | -7/Lower Caves | Entered another Lower Caves area 5659 | -7/Lower Caves | Spotted PS-3BF(f) 5660 | -7/Lower Caves | Encountered a Master Thief 5664 | -7/Lower Caves | Phase Cannon stolen by Master Thief 5665 | -7/Lower Caves | Spotted RS-4NZ(f) 5666 | -7/Lower Caves | Encountered a Master Thief 5666 | -7/Lower Caves | Imp. Hacking Suite stolen by Master Thief 5934 | -7/Lower Caves | Build established: Hauler-Assassin 6103 | -7/Lower Caves | Spotted WP-JOQ(f) 6104 | -7/Lower Caves | Encountered a Master Thief 6105 | -7/Lower Caves | Spotted KC-EPN(f) 6106 | -7/Lower Caves | Encountered a Master Thief 6108 | -7/Lower Caves | Imp. Hacking Suite stolen by Master Thief 6111 | -7/Lower Caves | Imp. Hacking Suite stolen by Master Thief 6118 | -7/Lower Caves | Discovered new exit (range 19) 6158 | -7/Lower Caves | Identified exit to Data Miner 6162 | -7/Lower Caves | Entered Data Miner 6162 | -7/Data Miner | Discovered new exit (range 6) 6197 | -7/Data Miner | Met Data Miner 6248 | -7/Data Miner | Learned location of Section 7 (-2) 6248 | -7/Data Miner | Acquired the access code to Warlord's prototype stash 6282 | -7/Data Miner | Received God Mode back door access code from Data Miner 6328 | -7/Data Miner | Destroyed Data Miner 6333 | -7/Data Miner | Found Prototype Hackware 6336 | -7/Data Miner | Data Conduit disabled 6360 | -7/Data Miner | Identified exit to Proximity Caves 6361 | -7/Data Miner | Core integrity fell below 50% 6361 | -7/Data Miner | Entered Proximity Caves 6383 | -6/Proximity Caves | Build established: Hauler-Mutant 6394 | -6/Proximity Caves | Found Alien Artifact 6394 | -6/Proximity Caves | Identified Core Expander 6394 | -6/Proximity Caves | Installed Core Expander, added new Weapon slot 6440 | -6/Proximity Caves | Spotted B-75 Beast 6641 | -6/Proximity Caves | Discovered new exit (range 6) 6643 | -6/Proximity Caves | Identified exit to Factory 6643 | -6/Proximity Caves | Entered Factory 6643 | -6/Factory | Evolved 2 slots: Utility x2 7022 | -6/Factory | Discovered new exit (range 13) 7052 | -6/Factory | Allied Derelicts emerged from ambush trap array 7147 | -6/Factory | Fabricated Powered Armor (x2) 7150 | -6/Factory | Local fabrication network quarantined 7224 | -6/Factory | Fabricated Exp. Terrain Scanner (x1) 7281 | -6/Factory | Discovered new exit (range 4) 7292 | -6/Factory | Identified exit to Lower Caves 7297 | -6/Factory | Build established: Hacker-Scout 7405 | -6/Factory | Sucked down chute 7405 | -6/Factory | Entered Waste 7406 | -6/Waste | Met a frightened Derelict 7408 | -6/Waste | Spotted C-40 Crusher 7408 | -6/Waste | Spotted C-40 Crusher 7410 | -6/Waste | Spotted C-40 Crusher 7419 | -6/Waste | Spotted C-40 Crusher 7420 | -6/Waste | EMP discharged 7420 | -6/Waste | Spotted C-40 Crusher 7434 | -6/Waste | Spotted C-40 Crusher 7440 | -6/Waste | Discovered new exit (range 14) 7445 | -6/Waste | Identified exit to Factory 7446 | -6/Waste | Entered Factory 7549 | -6/Factory | Identified exit to Extension 7595 | -6/Factory | Spotted B-75 Beast 7639 | -6/Factory | System corruption reached 10% 7689 | -6/Factory | Fabricated Imp. Utility Shielding? 7807 | -6/Factory | Fabricated Lrn. Sensor Array? 7943 | -6/Factory | Local fabrication network quarantined 8025 | -6/Factory | Entered Extension 8044 | -6/Extension | Lost 3 parts (1p1n1w) 8077 | -6/Extension | Rescued a captive Derelict 8335 | -6/Extension | Central database locked down 8356 | -6/Extension | Rescued a captive Derelict 8357 | -6/Extension | Rescued a captive Derelict 8389 | -6/Extension | Rescued a captive Derelict 8389 | -6/Extension | Rescued a captive Derelict 8507 | -6/Extension | Rescued a captive Derelict 8511 | -6/Extension | Rescued a captive Derelict 8524 | -6/Extension | Rescued a captive Derelict 8547 | -6/Extension | Spotted B-75 Beast 8550 | -6/Extension | Rescued a captive Derelict 8552 | -6/Extension | Rescued a captive Derelict 8611 | -6/Extension | Rescued a captive Derelict 8613 | -6/Extension | Rescued a captive Derelict 8654 | -6/Extension | Rescued A7 8743 | -6/Extension | Rescued a captive Derelict 8838 | -6/Extension | Discovered new exit (range 10) 8839 | -6/Extension | Discovered new exit (range 6) 8848 | -6/Extension | Identified exit to Factory 8862 | -6/Extension | Identified exit to Cetus 8871 | -6/Extension | Entered Cetus 8871 | -6/Cetus | Accompanied by 10 allies (A7) 8876 | -6/Cetus | Acquired a Cetus Manufacturing Module code from A7 8890 | -6/Cetus | Spotted Cetus Guard 8890 | -6/Cetus | Spotted Cetus Guard 8890 | -6/Cetus | Spotted Cetus Guard 8890 | -6/Cetus | Spotted Cetus Guard 8898 | -6/Cetus | Destroyed Cetus Guard 8904 | -6/Cetus | Allies destroyed Cetus Guard 8911 | -6/Cetus | Allies destroyed Cetus Guard 8911 | -6/Cetus | Allies destroyed Cetus Guard 8919 | -6/Cetus | Build established: Hacker-Mutant 9011 | -6/Cetus | Started Cetus Manufacturing Module 9036 | -6/Cetus | Manufactured an Enhanced Grunt 9041 | -6/Cetus | Discovered new exit (range 19) 9061 | -6/Cetus | Manufactured an Enhanced Grunt 9086 | -6/Cetus | Manufactured an Enhanced Grunt 9111 | -6/Cetus | Manufactured an Enhanced Grunt 9136 | -6/Cetus | Manufactured an Enhanced Grunt 9183 | -6/Cetus | Spotted Cetus Guard 9185 | -6/Cetus | Spotted Cetus Guard 9186 | -6/Cetus | Spotted Cetus Guard 9194 | -6/Cetus | Spotted Cetus Guard 9199 | -6/Cetus | Allies destroyed Cetus Guard 9200 | -6/Cetus | Allies destroyed Cetus Guard 9200 | -6/Cetus | Discovered exit to Factory (range 20) 9203 | -6/Cetus | Destroyed Cetus Guard 9208 | -6/Cetus | Allies destroyed Cetus Guard 9221 | -6/Cetus | Met Revision 17 9296 | -6/Cetus | Destroyed A7 9301 | -6/Cetus | Found Prototype Protection 9301 | -6/Cetus | Identified Med. Regenerative Plating 9304 | -6/Cetus | Extracted ID and sensor layout for unrecognized location from A7's data core 9331 | -6/Cetus | Build established: Commander-Mutant 9340 | -6/Cetus | Identified exit to Archives 9353 | -6/Cetus | Entered Archives 9353 | -6/Archives | Accompanied by 4 allies 9493 | -6/Archives | Discovered new exit (range 19) 9654 | -6/Archives | Build established: Hacker-Mutant 12109 | -6/Archives | Discovered exit to Factory (range 15) 12141 | -6/Archives | Discovered new exit (range 15) 12189 | -6/Archives | Identified exit to Hub_04(d) 12198 | -6/Archives | Entered Hub_04(d) 12198 | -6/Hub_04(d) | Accompanied by 4 allies 12341 | -6/Hub_04(d) | Discovered exit to Factory (range 29) 12347 | -6/Hub_04(d) | Discovered exit to Factory (range 11) 12370 | -6/Hub_04(d) | Discovered exit to Factory (range 28) 12683 | -6/Hub_04(d) | Network Hub disabled 12683 | -6/Hub_04(d) | Network Hub disabled 12704 | -6/Hub_04(d) | Spotted Lightning 12705 | -6/Hub_04(d) | Entered Factory 12705 | -5/Factory | Evolved 2 slots: Utility x2 12802 | -5/Factory | Identified Ghost Barrier 12990 | -5/Factory | Fabricated Exp. Utility Shielding (x1) 13077 | -5/Factory | Fabricated Exp. Utility Shielding? 13096 | -5/Factory | Local fabrication network quarantined 13109 | -5/Factory | Central database locked down 13151 | -5/Factory | Identified exit to Upper Caves 13164 | -5/Factory | Fabricated Exp. Signal Interpreter? 13703 | -5/Factory | Found Prototype Processor 14531 | -5/Factory | Repaired Antimatter Cannon 14618 | -5/Factory | Repaired Broken Adv. Transmission Jammer? 14739 | -5/Factory | Repaired Exp. Utility Shielding? 15792 | -5/Factory | Destroyed 9 combat bots 16005 | -5/Factory | First assault squad dispatched 16120 | -5/Factory | Discovered new exit (range 11) 16209 | -5/Factory | Repaired Centrium Heavy Treads? 16284 | -5/Factory | Found Prototype Launcher 16284 | -5/Factory | Identified Mni. Smartbomb Launcher 16333 | -5/Factory | Manually triggered Chute Trap 16333 | -5/Factory | Sucked down chute 16333 | -5/Factory | Entered Waste 16333 | -5/Waste | The area was eerily silent 16403 | -5/Waste | Discovered new exit (range 16) 16414 | -5/Waste | Found Damper Plating 16473 | -5/Waste | Identified exit to Factory 16474 | -5/Waste | Entered Factory 16587 | -5/Factory | Spotted B-75 Beast 17374 | -5/Factory | Repaired Exp. Utility Shielding? 17408 | -5/Factory | Destroyed 10 combat bots 17572 | -5/Factory | Repaired Exp. Utility Shielding? 17755 | -5/Factory | Fabricated Exp. Cesium-ion Thruster (x1) 17755 | -5/Factory | Repaired Cld. Cesium-ion Thruster? 17814 | -5/Factory | Fabricated Exp. Sensor Array? 17917 | -5/Factory | Fabricated Exp. Propulsion Shielding (x1) 17980 | -5/Factory | Identified Exp. Terrain Scan Processor 18051 | -5/Factory | Repaired Mic. Fission Core 18073 | -5/Factory | Repaired Reaction Control System 18107 | -5/Factory | Repaired Adv. Variable Charge Gun 18123 | -5/Factory | Entered Upper Caves 18172 | -5/Upper Caves | Identified exit to Upper Caves 18175 | -5/Upper Caves | Learned Factory stockpile data 18258 | -5/Upper Caves | Entered another Upper Caves area 18260 | -5/Upper Caves | Discovered new exit (range 9) 18302 | -5/Upper Caves | Spotted OQ-APB(f) 18302 | -5/Upper Caves | Spotted 68-68F(f) 18306 | -5/Upper Caves | Encountered a Master Thief 18306 | -5/Upper Caves | Encountered a Master Thief 18374 | -5/Upper Caves | Discovered new exit (range 16) 18377 | -5/Upper Caves | Identified exit to Warlord 18378 | -5/Upper Caves | Entered Warlord 18388 | -5/Warlord | System corruption cleaned by Quarantine Array 18389 | -5/Warlord | Discovered new exit (range 29) 18452 | -5/Warlord | Learned 4 Testing zone layouts 18452 | -5/Warlord | Learned 4 Quarantine zone layouts 18452 | -5/Warlord | Learned location of Quarantine (-2) 18452 | -5/Warlord | Learned Quarantine emergency access door positions 18452 | -5/Warlord | Learned Research stockpile data 18452 | -5/Warlord | Learned Testing stockpile data 18452 | -5/Warlord | Learned Factory fabricator intel 18452 | -5/Warlord | Learned Factory scanalyzer intel 18452 | -5/Warlord | Learned Armory terminal intel 18452 | -5/Warlord | Learned Armory fabricator intel 18452 | -5/Warlord | Learned Armory garrison access intel 18452 | -5/Warlord | Learned Research repair station intel 18533 | -5/Warlord | Warlord's base attacked by MAIN.C 18535 | -5/Warlord | Found Prototype Energy Gun 18535 | -5/Warlord | Identified Vortex Rail 18610 | -5/Warlord | Found Prototype Device 18610 | -5/Warlord | Identified Exp. Focal Shield 18677 | -5/Warlord | Build established: Hacker-Sprinter 18873 | -5/Warlord | Spotted Striker 18883 | -5/Warlord | Warlord forces counterattacked 18883 | -5/Warlord | P-70 Sage assimilated allied BL-27U(Y) 18888 | -5/Warlord | Found Prototype Ballistic Cannon 18901 | -5/Warlord | Identified exit to Proximity Caves 18901 | -5/Warlord | Entered Proximity Caves 18944 | -4/Proximity Caves | Discovered new exit (range 25) 18956 | -4/Proximity Caves | Identified exit to Factory 18956 | -4/Proximity Caves | Entered Factory 18956 | -4/Factory | Evolved 2 slots: Utility x2 18958 | -4/Factory | Loaded intel: 6 fabricator locations 18959 | -4/Factory | Loaded intel: 4 scanalyzer locations 19017 | -4/Factory | Identified exit to Upper Caves 19246 | -4/Factory | P-70 Sage assimilated allied Director 7a 19453 | -4/Factory | Repaired Imp. Diametric Drive 19518 | -4/Factory | Central database locked down 19534 | -4/Factory | Repaired Exp. Utility Shielding 19615 | -4/Factory | Fabricated Mni. Fusion Reactor (x1) 19661 | -4/Factory | Fabricated Exp. Hacking Suite (x1) 19708 | -4/Factory | Fabricated Exp. Hacking Suite? 20035 | -4/Factory | Fabricated Exp. Hacking Suite (x1) 20084 | -4/Factory | Fabricated Exp. Hacking Suite (x1) 20168 | -4/Factory | Entered Upper Caves 20180 | -4/Upper Caves | Learned Research garrison access intel 20213 | -4/Upper Caves | Discovered new exit (range 12) 20215 | -4/Upper Caves | Identified exit to Upper Caves 20216 | -4/Upper Caves | Entered another Upper Caves area 20218 | -4/Upper Caves | Discovered new exit (range 16) 20253 | -4/Upper Caves | Spotted B-86 Titan 20358 | -4/Upper Caves | Discovered new exit (range 13) 20361 | -4/Upper Caves | Identified exit to Zhirov 20362 | -4/Upper Caves | Entered Zhirov 20362 | -4/Zhirov | Discovered new exit (range 3) 20368 | -4/Zhirov | Met Zhirov 20374 | -4/Zhirov | Learned location of Testing (-3) 20374 | -4/Zhirov | Learned location of Command (-1) 20375 | -4/Zhirov | Zhirov requested help retrieving the SGEMP Prototype 20380 | -4/Zhirov | Found Alien Artifact 20380 | -4/Zhirov | Identified Integrated Dissipator 20380 | -4/Zhirov | Installed Integrated Dissipator, increased core heat dissipation (+20) 20443 | -4/Zhirov | Found Alien Artifact 20477 | -4/Zhirov | Identified exit to Proximity Caves 20477 | -4/Zhirov | Entered Proximity Caves 20590 | -3/Proximity Caves | Discovered new exit (range 12) 20593 | -3/Proximity Caves | Identified exit to Research 20594 | -3/Proximity Caves | Entered Research 20594 | -3/Research | Evolved 2 slots: Utility x2 20596 | -3/Research | Loaded intel: 4 repair station locations 20597 | -3/Research | Loaded intel: 4 garrison access locations 20610 | -3/Research | Identified exit to Armory 20610 | -3/Research | Identified exit to Testing 20666 | -3/Research | Repaired Mni. Fusion Reactor 20697 | -3/Research | Repaired Exp. Propulsion Shielding 20750 | -3/Research | Central database locked down 20794 | -3/Research | Revision forces began assault on 0b10 20800 | -3/Research | Fabricated Plasma Lance (x1) 20831 | -3/Research | Fabricated Plasma Lance (x1) 20849 | -3/Research | Met up with Revision 17++ 20863 | -3/Research | Fabricated Plasma Lance (x1) 20897 | -3/Research | Entered Testing 20907 | -3/Testing | Found Prototype Energy Cannon 20907 | -3/Testing | Identified Null Cannon 21029 | -3/Testing | Found Exp. Signal Interpreter 21038 | -3/Testing | Found Prototype Energy Gun 21038 | -3/Testing | Identified Hyp. EM Gauss Rifle 21083 | -3/Testing | Fabricated Dimensional Manipulator (x1) 21120 | -3/Testing | Fabricated Dimensional Manipulator (x1) 21146 | -3/Testing | Discovered new exit (range 26) 21157 | -3/Testing | Fabricated Exp. Q-thruster (x1) 21269 | -3/Testing | Identified Transdimensional Reconstructor 21269 | -3/Testing | Identified Hvy. Autocannon 21278 | -3/Testing | Spotted Striker 21297 | -3/Testing | Local fabrication network quarantined 21312 | -3/Testing | Found Prototype Protection 21345 | -3/Testing | Found Prototype Energy Cannon 21345 | -3/Testing | Identified Imp. Potential Cannon 21370 | -3/Testing | Found Prototype Device 21467 | -3/Testing | Repaired Exp. Utility Shielding 21565 | -3/Testing | Identified exit to Research 21571 | -3/Testing | Entered Research 21571 | -2/Research | Accompanied by 1 ally 21571 | -2/Research | Evolved 2 slots: Utility x2 21572 | -2/Research | Identified exit to Quarantine 21612 | -2/Research | Discovered new exit (range 29) 21627 | -2/Research | Discovered new exit (range 20) 21660 | -2/Research | Identified exit to Access 21882 | -2/Research | Fabricated EM Dispersion Field? 21911 | -2/Research | Central database locked down 21936 | -2/Research | Fabricated Femtoactuators (x1) 21945 | -2/Research | Build established: Wizard-Scout 21950 | -2/Research | Ghost Barrier fried by hacking feedback 21974 | -2/Research | Fabricated Exp. Armor Integrity Analyzer? 21975 | -2/Research | Found Quantum Capacitor 22156 | -2/Research | Fabricated Adv. Force Booster (x2) 22178 | -2/Research | Fabricated Beam Splitter? 22284 | -2/Research | Local fabrication network quarantined 22294 | -2/Research | Entered Quarantine 22294 | -2/Quarantine | Accompanied by 2 allies 22310 | -2/Quarantine | Found Alien Energy Cannon 22322 | -2/Quarantine | Identified Core Cannon 22322 | -2/Quarantine | Identified AEGIS Remote Shield 22322 | -2/Quarantine | Identified SHELL Armor 22341 | -2/Quarantine | Central database locked down 22451 | -2/Quarantine | Repaired Mni. Fusion Reactor 22481 | -2/Quarantine | Found Alien Artifact 22638 | -2/Quarantine | Found Prototype Launcher 22657 | -2/Quarantine | Met incapacitated Sigix Warrior 22657 | -2/Quarantine | Lockdown squad dispatched 22816 | -2/Quarantine | Spotted Lightning 22817 | -2/Quarantine | Spotted Lightning 22830 | -2/Quarantine | Spotted Lightning 22868 | -2/Quarantine | Destroyed Lightning 22870 | -2/Quarantine | Found Prototype Device 22885 | -2/Quarantine | Destroyed Lightning 22887 | -2/Quarantine | Found Prototype Processor 22888 | -2/Quarantine | Found Prototype Processor 22904 | -2/Quarantine | Destroyed Lightning 22906 | -2/Quarantine | Found Prototype Device 22987 | -2/Quarantine | Build established: Machinist-Sprinter 22997 | -2/Quarantine | Repaired Exp. Utility Shielding 23160 | -2/Quarantine | Identified Exp. Phase Shifter (x2) 23171 | -2/Quarantine | Found Alien Artifact 23293 | -2/Quarantine | Spotted Alpha 7 23328 | -2/Quarantine | Destroyed Alpha 7 23353 | -2/Quarantine | Identified Core Reset Matrix 23353 | -2/Quarantine | Identified Subatomic Replicator 23353 | -2/Quarantine | Identified Exp. Targeting Computer (x2) 23364 | -2/Quarantine | Found Alien Launcher 23416 | -2/Quarantine | Spotted Fortress 23431 | -2/Quarantine | Discovered new exit (range 5) 23432 | -2/Quarantine | Identified exit to Section 7 23432 | -2/Quarantine | Entered Section 7 23472 | -2/Section 7 | Repaired Mni. Fusion Reactor 23499 | -2/Section 7 | Repaired Exp. Utility Shielding 23536 | -2/Section 7 | Found Integrated Dissipator 23536 | -2/Section 7 | Installed Integrated Dissipator, increased core heat dissipation (+20) 23573 | -2/Section 7 | Spotted S7 Guard 23583 | -2/Section 7 | Found Alien Artifact 23598 | -2/Section 7 | Found Integrated Dissipator 23598 | -2/Section 7 | Installed Integrated Dissipator, increased core heat dissipation (+20) 23602 | -2/Section 7 | Discovered exit to Access (range 29) 23685 | -2/Section 7 | Identified Integrated Heat Negator 23685 | -2/Section 7 | Installed Integrated Heat Negator, increased core heat dissipation (+40) 23709 | -2/Section 7 | Spotted S7 Guard 23711 | -2/Section 7 | Found Alien Artifact 23725 | -2/Section 7 | Identified Integrated Singularity Reactor 23727 | -2/Section 7 | Used Subatomic Replicator to replicate Integrated Singularity Reactor 23728 | -2/Section 7 | Installed Integrated Singularity Reactor, increased core energy generation (+20) 23729 | -2/Section 7 | Installed Integrated Singularity Reactor, increased core energy generation (+20) 23838 | -2/Section 7 | Found Alien Artifact 23860 | -2/Section 7 | Identified Integrity Redistributor 23877 | -2/Section 7 | Found Integrated Dissipator 23877 | -2/Section 7 | Installed Integrated Dissipator, increased core heat dissipation (+20) 23937 | -2/Section 7 | Spotted B-90 Cyclops 24044 | -2/Section 7 | Spotted Executioner 24074 | -2/Section 7 | Spotted B-99 Colossus 24090 | -2/Section 7 | Found Alien Artifact 24090 | -2/Section 7 | Identified LRC Matter Compressor 24090 | -2/Section 7 | Installed LRC Matter Compressor, increased matter storage capacity (+125) 24092 | -2/Section 7 | Found Alien Artifact 24092 | -2/Section 7 | Identified LRC Storage 24092 | -2/Section 7 | Installed LRC Storage, increased inventory capacity (+2) 24094 | -2/Section 7 | Found LRC Storage 24094 | -2/Section 7 | Installed LRC Storage, increased inventory capacity (+2) 24104 | -2/Section 7 | Found Integrity Redistributor 24105 | -2/Section 7 | Found Integrity Redistributor 24106 | -2/Section 7 | Found Integrity Redistributor 24212 | -2/Section 7 | Entered Access 24212 | -1/Access | Evolved 2 slots: Utility x2 24298 | -1/Access | Identified exit to Command 24489 | -1/Access | Garrison activated, responded to threat 24493 | -1/Access | Repaired Exp. Utility Shielding? 24944 | -1/Access | Fabricated Adv. Particle Accelerator (x1) 24964 | -1/Access | Used Integrity Redistributor, redistributed integrity from core (-77) 24968 | -1/Access | Entered Command 25011 | -1/Command | Discovered new exit (range 30) 25035 | -1/Command | Destroyed 7 combat bots 25061 | -1/Command | Spotted Combat Programmer 25115 | -1/Command | Met MAIN.C 25119 | -1/Command | 0b10 Conduit disabled 25136 | -1/Command | Destroyed MAIN.C Shell 25137 | -1/Command | Surrendered to MAIN.C 25137 | -1/Command | Loaded intel: 52 machine locations 25137 | -1/Command | Loaded intel: 93 trap records 25137 | -1/Command | Identified exit to Surface 25137 | -1/Command | Discovered exit to Surface (range 39) 25137 | -1/Command | Discovered exit to Surface (range 89) 25150 | -1/Command | Found Prototype Ballistic Cannon 25150 | -1/Command | Identified Omega Cannon 25153 | -1/Command | Found Prototype Device 25153 | -1/Command | Identified Exp. Weapon Cycler 25155 | -1/Command | Found Prototype Device 25155 | -1/Command | Identified Exp. Transmission Jammer 25158 | -1/Command | Found Prototype Device 25158 | -1/Command | Identified Exp. Force Field 25497 | -1/Command | Build established: Machinist-Mutant 25547 | -1/Command | MAIN.C activated Command garrisons 25586 | -1/Command | Unknown forces attacked Command 25586 | -1/Command | Spotted EQ-002 25586 | -1/Command | Spotted EQ-005 25586 | -1/Command | Spotted EQ-006 25586 | -1/Command | Spotted EQ-003 25586 | -1/Command | Spotted EQ-004 25586 | -1/Command | Spotted EQ-001 25586 | -1/Command | Spotted EQ-000 25595 | -1/Command | Destroyed EQ-005 25598 | -1/Command | Used Integrity Redistributor, redistributed integrity from core (-54) 25602 | -1/Command | Destroyed EQ-004 25608 | -1/Command | Destroyed EQ-003 25614 | -1/Command | Destroyed EQ-002 25666 | -1/Command | Spotted EQ-022 25666 | -1/Command | Spotted EQ-019 25666 | -1/Command | Spotted EQ-018 25666 | -1/Command | Spotted EQ-035 25666 | -1/Command | Spotted EQ-021 25666 | -1/Command | Spotted EQ-023 25666 | -1/Command | Spotted EQ-020 25667 | -1/Command | Destroyed EQ-019 25669 | -1/Command | Destroyed EQ-018 25676 | -1/Command | Destroyed EQ-021 25686 | -1/Command | Destroyed EQ-022 25709 | -1/Command | Spotted EQ-034 25712 | -1/Command | Destroyed EQ-034 25740 | -1/Command | Spotted EQ-007 25750 | -1/Command | Destroyed EQ-007 25765 | -1/Command | Spotted EQ-036 25765 | -1/Command | Destroyed EQ-036 25767 | -1/Command | Spotted EQ-029 25768 | -1/Command | Spotted EQ-038 25770 | -1/Command | Spotted EQ-041 25770 | -1/Command | Spotted EQ-057 25770 | -1/Command | Spotted EQ-039 25770 | -1/Command | Spotted EQ-040 25771 | -1/Command | Destroyed EQ-039 25780 | -1/Command | Destroyed EQ-057 25798 | -1/Command | Spotted EQ-046 25800 | -1/Command | Destroyed EQ-046 25810 | -1/Command | Spotted EQ-051 25810 | -1/Command | Destroyed EQ-051 25812 | -1/Command | Spotted EQ-031 25872 | -1/Command | Spotted EQ-062 25872 | -1/Command | Spotted EQ-071 25872 | -1/Command | Spotted EQ-060 25876 | -1/Command | Destroyed EQ-062 25880 | -1/Command | Spotted EQ-063 25885 | -1/Command | Spotted EQ-061 25891 | -1/Command | Destroyed EQ-061 25895 | -1/Command | Spotted EQ-082 25895 | -1/Command | Used Integrity Redistributor, redistributed integrity from core (-41) 25914 | -1/Command | Spotted EQ-064 25916 | -1/Command | Destroyed EQ-064 25919 | -1/Command | Spotted EQ-076 25927 | -1/Command | Destroyed EQ-076 25973 | -1/Command | Spotted EQ-084 25973 | -1/Command | Spotted EQ-085 25973 | -1/Command | Spotted EQ-095 25989 | -1/Command | Destroyed EQ-095 25992 | -1/Command | Spotted EQ-087 25994 | -1/Command | Found Exp. Core Analyzer 26001 | -1/Command | Spotted EQ-077 26064 | -1/Command | Destroyed EQ-077 26067 | -1/Command | Spotted EQ-109 26067 | -1/Command | Destroyed EQ-109 26068 | -1/Command | Attackers retreated from Command 26068 | *** | Fortifying 0b10! Last Messages --------------- 26059_ EMDS Slug penetrates EQ-077. 26060_ Slug penetrates EQ-077. 26060_ EQ-077 suffers critical hit. 26061_ Slug penetrates EQ-077. 26062_ EQ-077 suffers critical hit. 26062_ EQ-077 knocked back. 26062_ Slug penetrates EQ-077. 26063_ EMDS Slug penetrates EQ-077. 26064_ EQ-077 destroyed. 26065_ Acquired 6 matter. 26066_ Acquired 27 matter. 26067_ EQ-109 destroyed. 26068_ ALERT: Enemy forces retreating. MAIN.C: I admit your assistance was pivotal here. It looks like I was right to trust you. This attack appears to have been designed to merely test our defenses, although it was nearly effective enough to force me to take the conflict to the next level. Investigating the origins of these bots should be one of our highest priorities... Map ----- +----------------------------------------------------+ | ## #### ##??#?#????#??#?##?#?######## | | ## """ #### ##??#?????#????###?########## | | ## "Y" #]][ =#??##??##?#?####?#?######### | | ## " " #]]] !=#??##?##?##?#?#?#?########## | | ## #!!! ]]##?#?#??#?####??############ | | ## % #!!=**==#??????#?#??#?##?########### | | ##########??###?#?#?####?########### | | = %* #???????##?#?##????################# | | !| #??????????#?#?##????##?###?######## | | ! #????????#####?####?#?############## | | % ######### ######################## | | # #???? #?#???################## | | """" # #?#### #######"################ | | * "" # ### *% ########## | | % *% # # #" !% % ########## | | % *# ## " ########## | | # | | %! % [ # #" [!= | | ! # [%%% | | !% # % =! = ########## | | % ### # %% = ########## | | !! # # =% %! ########## | | *%= ### # M = [ ########## | | %! = # # 7% Y= / #?######## | | = = %" # # % !p =[! ########## | | ] *" # %= @ * ][% ########## | | ! =[*= =%! ########## | | [= !] [ !!% =%l! ########## | | [%*% ] *!*!/* % ########## | | *!=[ !!*%*=%*! ########## | | =!]]! [ ==%=! ########## | | # #%= # != ########## | | ! # # % ########## | | # # # # ########## | | ####### # ################### ############ | | ####?????# ## #????????###??#?### ###?######## | | ###???????# #################################### | | ##????????# #???????????????###???#????#???###### | | #?????????# #???????????????????###?###?###?###### | | #####????# #??????????????????????#??##??####?#### | | #???? #?????????????????????######???#?#?##### | | #??? ?????????????????????????#?????####?##### | | " ^ #?? ????????????????????????????###?#####?##?# | | "" #?????????????????????????????????#?##??#??#?# | | "" #???????????????????????????????????#?????##?# | | #???????????????????????????????????????##?### | | #??????????????????????????????????????????#?# | | #??????????????????????????????????????????#?# | | #####??????????????????????????????????????????#?# | | ???????????????????????????????????????????????#?# | +----------------------------------------------------+ Best States ------------- Heat Dissipation 272 Coolant Potential 80 Energy Generation 67 Energy Capacity 1130 Matter Stores 425 Matter Capacity 425 Sight Range 20 Robot Scan Range 30 Terrain Scan Range 30 Terrain Scan Density 1010 ECM Strength 3 Jamming Range 16 Additional Mass Support 66 Armor Coverage 2400 Resistance: KI 30 Resistance: TH 75 Resistance: EM 90 Propulsion Shielding 90 Utility Shielding 90 Weapon Shielding 90 Weapon Cycling 30 Melee Speed Boost 50 Phase Shifting 20 Evasion (%) 100 Targeting Accuracy 24 Core Analysis 15 Armor Integrity Analysis 90 Recoil Reduction 2 Matter Filtering 30 Energy Filtering 50 Particle Charging 50 Force Boost 5 Offensive Hacking 99 Defensive Hacking 20 Item Schematics ----------------- Combat Drone Bay | -7/Data Miner | Free Lgt. Regenerative Plating | -7/Data Miner | Free Exp. Flexi-carbon Leg | -7/Data Miner | Free Cmb. Gravmag System | -7/Data Miner | Free Exp. Cesium-ion Thruster | -7/Data Miner | Free Triangulator | -7/Data Miner | Free Exp. Terrain Scanner | -7/Data Miner | Free Exp. ECM Suite | -7/Data Miner | Free Powered Armor | -6/Factory | Hacked Lrn. Proton Cannon | -6/Factory | Hacked Imp. Utility Shielding | -6/Factory | Hacked Lrn. Sensor Array | -6/Factory | Hacked Imp. Propulsion Shielding | -6/Factory | Hacked Exp. Utility Shielding | -5/Factory | Hacked Exp. Propulsion Shielding | -5/Factory | Hacked Exp. Signal Interpreter | -5/Factory | Hacked Adv. Heavy Treads | -5/Factory | Hacked Exp. Sensor Array | -5/Factory | Hacked Mni. Fusion Reactor | -4/Factory | Hacked Exp. Hacking Suite | -4/Factory | Hacked Assault Drone Bay | -4/Zhirov | Free Exp. Heat Sink | -4/Zhirov | Free Exp. Optical Array | -4/Zhirov | Free Imp. Arc Thrower | -4/Zhirov | Free Plasma Lance | -3/Research | Hacked Quantum Shading Machine | -3/Testing | Hacked Adv. Force Booster | -3/Testing | Hacked Exp. Q-thruster | -3/Testing | Hacked Dimensional Manipulator | -3/Testing | Hacked Femtoactuators | -3/Testing | Hacked Exp. Actuator Array | -3/Testing | Hacked Exp. Weapon Shielding | -3/Testing | Scanalyzed EM Dispersion Field | -3/Testing | Hacked Beam Splitter | -2/Research | Hacked Exp. Armor Integrity Analyzer | -2/Research | Hacked Exp. Core Analyzer | -2/Research | Hacked Prc. Energy Filter | -2/Quarantine | Hacked Adv. Overload Amplifier | -2/Quarantine | Hacked Adv. Overload Regulator | -2/Section 7 | Hacked Adv. Particle Accelerator | -1/Access | Hacked Robot Schematics ------------------ S-27 Virus | -7/Data Miner | Free G-50 Soldier | -7/Data Miner | Free L-41 Fighter | -7/Data Miner | Free X-72 Disruptor | -7/Data Miner | Free P-70 Sage | -7/Data Miner | Free I-36 Angel | -7/Data Miner | Free Fabricated ------------ Imp. Hacking Suite | x1 | -7/Factory | Preloaded Imp. Hacking Suite | x1 | -7/Factory | Preloaded Imp. Hacking Suite | x1 | -7/Factory | Preloaded Powered Armor | x2 | -6/Factory Exp. Terrain Scanner | x1 | -6/Factory Imp. Utility Shielding | x2 | -6/Factory Lrn. Sensor Array | x1 | -6/Factory Exp. Utility Shielding | x1 | -5/Factory Exp. Utility Shielding | x1 | -5/Factory Exp. Signal Interpreter | x1 | -5/Factory Exp. Cesium-ion Thruster | x1 | -5/Factory Exp. Sensor Array | x1 | -5/Factory Exp. Propulsion Shielding | x1 | -5/Factory Mni. Fusion Reactor | x1 | -4/Factory Exp. Hacking Suite | x1 | -4/Factory Exp. Hacking Suite | x1 | -4/Factory Exp. Hacking Suite | x1 | -4/Factory Exp. Hacking Suite | x1 | -4/Factory Plasma Lance | x1 | -3/Research Plasma Lance | x1 | -3/Research Plasma Lance | x1 | -3/Research Dimensional Manipulator | x1 | -3/Testing Dimensional Manipulator | x1 | -3/Testing Exp. Q-thruster | x1 | -3/Testing EM Dispersion Field | x1 | -2/Research Femtoactuators | x1 | -2/Research Exp. Armor Integrity Analyzer | x1 | -2/Research Adv. Force Booster | x2 | -2/Research Beam Splitter | x1 | -2/Research Adv. Particle Accelerator | x1 | -1/Access Alien Tech Used ----------------- Core Expander Integrated Dissipator Integrated Heat Negator Subatomic Replicator Integrated Singularity Reactor LRC Matter Compressor LRC Storage Integrity Redistributor Core Cannon Achievements -------------- None Challenges ------------ None Game ------ Seed LayeredSeismicMatrix Manual? 0 Play Time 06:40:44 Cumulative 974.5 hours Start 2020.09.29 @ 13:43:38 End 2020.10.01 @ 18:59:48 Sessions 15 Manual Loads 0 Difficulty Rogue Special Mode None Game No. 294 Rogue 294 Adventurer 0 Explorer 0 Win Type 8 Total 66 Types 42/4/7/5/4/1/1/1/1 Lore% 98 Gallery% 98 Achievement% 98 Wizard Run 0 Options --------- ASCII 0 Keyboard 1 Movement Numpad Keybinds 0 Fullscreen 1 Font 18/SmallcapsGlow Map View 76x50 Tactical HUD 1 Map Filters NONE Filters NONE Steam 1 RUN: 13391da8-2477-4976-8181-9ec60c167bcb